Cogmind - Beta 16 X2 @@@ ROGUE MODE // 2025.10.16 @ 00:09:24 Player: cptwinky Result: Fortifying 0b10! Performance ------------- Evolutions (9) 4500 Regions Visited (32) 6400 Robots Destroyed (639) 3195 Value Destroyed (36624) 36624 Prototype IDs (146) 2920 Alien Tech Used (2) 400 Bonus (30495) 30495 TOTAL SCORE: 84534 Bonus ------- High Alert Combat Kills 6959 Follower Combat Kills 2574 Destroyed Unchained 2000 Entered Garrisons 600 Used RIF Installer 2000 Network Hubs Disabled 200 Met Data Miner 300 Met Zhirov 300 Built Enhanced Grunts 300 Met R17 at Cetus 500 Met R17 at Research 2000 Met MAIN.C 5000 Destroyed MAIN.C Shell 5000 Win 3000 Friendly Fire -238 Cogmind --------- Core Integrity 1175/1600 Matter 111/300 Energy 1625/1640 System Corruption 3% Temperature Warm (119) Movement Walking (100) Location By MAIN.C's Side Parts ------- > --- POWER (3) -------- Hybrid Graviton Reactor Concept Zero-point Core Concept Zero-point Core > --- PROPULSION (7) --- Experimental Biometal Leg Experimental Biometal Leg Experimental VSS Leg Experimental Armored Exoskeleton > --- UTILITY (12) ----- Concept Phasing Heat Sink Experimental Coolant Injector Concept Antigrav Storage Unit Experimental Optical Array Advanced Targeting Computer Advanced Target Analyzer Experimental Core Analyzer Concept RG22 Armor Concept RG22 Armor Graphene Brace Concept Energy Mantle Experimental System Purifier > --- WEAPON (3) ------- Concept Plasma Driver Hypervelocity Multirail Concept Helical Railcannon > --- INVENTORY (25) --- Vortex Chain Reactor High-density Centrium Leg High-density Centrium Leg Experimental Biometal Leg Concept Chromion Battery (800) Concept Chromion Battery (800) Concept NT7 Matterbank (750) Improved Reaction Control System Experimental Core Shielding Concept Hardlight Director Concept Matter Streamer Null Cannon Improved Potential Cannon Hypervelocity Multirail Heavy Hardcell Cannon Graviton Cannon Perforator Concept Helical Railcannon Concept Tiamat Rocket Array Concept Smart ZDS Makeshift Laser Shovel Peak State ------------ > --- POWER ------------ Hybrid Graviton Reactor Concept Zero-point Core Concept Zero-point Core > --- PROPULSION ------- Experimental Biometal Leg Experimental Biometal Leg Experimental VSS Leg Experimental Armored Exoskeleton > --- UTILITY ---------- Concept Phasing Heat Sink Experimental Coolant Injector Concept Antigrav Storage Unit Experimental Targeting Computer Advanced Target Analyzer Advanced Target Analyzer Experimental Core Analyzer Concept RG22 Armor Concept RG22 Armor Concept Energy Mantle Experimental System Purifier Concept Matter Streamer > --- WEAPON ----------- Concept Plasma Driver Hypervelocity Multirail Concept Helical Railcannon > --- INVENTORY -------- Vortex Chain Reactor High-density Centrium Leg High-density Centrium Leg Experimental Biometal Leg Concept Chromion Battery Concept Chromion Battery Concept NT7 Matterbank Improved Reaction Control System Experimental Core Shielding Graphene Brace Concept Hardlight Director Null Cannon Improved Potential Cannon Hypervelocity Multirail Heavy Hardcell Cannon Graviton Cannon Perforator Concept Helical Railcannon Concept Tiamat Rocket Array Concept Smart ZDS Makeshift Laser Shovel [Rating: 291] Favorites ----------- Power Cooled Ion Engine Engine Cooled Ion Engine Power Core Light Fission Core Reactor Micro Antimatter Reactor Propulsion Light Treads Treads Light Treads Leg Medium Armored Exoskeleton Wheel Armored Huge Wheel Utility High-capacity Storage Unit Device Advanced Heat Sink Storage High-capacity Storage Unit Processor Advanced Targeting Computer Hackware Hacking Suite Protection Centrium Medium Armor Plating Weapon Improved Medium Laser Energy Gun Improved Medium Laser Energy Cannon Heavy Phase Cannon Ballistic Gun Improved Assault Rifle Ballistic Cannon Antimatter Cannon Launcher Missile Launcher Special Weapon Advanced Remote Datajack Impact Weapon Heavy Flail Special Melee Weapon Improved Datajack Build | -11 -10 -10 -9 -9 -8 -8 -7 -7 -7 -7 -6 -6 -6 -6 -6 -6 -5 -5 -5 -5 -5 -5 -4 -4 -4 -3 -3 -2 -2 -2 -1 -1 ------- Run | Yrd Mat Min Mat Sto Mat Gar Fac Gar Fac Gar Fac Was Fac Low Low Dat Pro Fac Ext Cet Arc Hub Fac Upp Upp Res Tes Res Qua Frg Acc Com Slots Evolved 18 | . . . 2 . 2 . 2 . . . 2 . . . . . . 2 . . . . 2 . . 2 . 2 . . 2 . Power 2 | . . . . . . . . . . . 1 . . . . . . . . . . . . . . 1 . . . . . . Propulsion 5 | . . . 1 . . . . . . . . . . . . . . 2 . . . . 1 . . . . 1 . . . . Utility 10 | . . . 1 . 1 . 2 . . . 1 . . . . . . . . . . . 1 . . 1 . 1 . . 2 . Weapon 1 | . . . . . 1 . . . . . . . . . . . . . . . . . . . . . . . . . . . Parts Attached 418 | 6 11 2 18 19 3 21 2 11 13 7 47 . 10 7 7 . 4 19 9 4 . 12 21 6 4 26 15 8 16 63 8 19 Power 60 | 1 3 . 2 2 . 1 . . 1 1 10 . 1 . 3 . . 2 2 . . 3 2 1 1 4 2 1 3 11 . 3 Engine 20 | 1 3 . 2 2 . 1 . . 1 . 5 . . . 2 . . 1 1 . . . 1 . . . . . . . . . Core 14 | . . . . . . . . . . 1 4 . 1 . 1 . . . 1 . . 2 1 1 . . . . . 1 . 1 Reactor 26 | . . . . . . . . . . . 1 . . . . . . 1 . . . 1 . . 1 4 2 1 3 10 . 2 Propulsion 85 | 2 2 1 6 8 . 8 . 3 2 . 6 . 2 4 . . . 6 1 1 . 4 2 1 . 4 1 2 3 12 1 3 Treads 33 | 2 . 1 5 8 . 8 . 3 1 . . . . 2 . . . 1 . 1 . . . . . . . . . 1 . . Leg 44 | . . . 1 . . . . . . . 3 . 2 1 . . . 4 1 . . 4 2 1 . 4 1 2 3 11 1 3 Wheel 8 | . 2 . . . . . . . 1 . 3 . . 1 . . . 1 . . . . . . . . . . . . . . Hover . | . . . . . . . . . . . . . . . . . . . . . . . . . . . . . . . . . Flight . | . . . . . . . . . . . . . . . . . . . . . . . . . . . . . . . . . Utility 170 | 1 3 1 5 2 2 10 2 4 5 2 21 . 3 2 4 . 2 6 4 3 . 2 13 3 1 14 5 3 6 28 6 7 Device 72 | . . . 2 . . 5 2 1 1 . 3 . . . 1 . . 6 3 . . 1 8 2 1 8 4 2 3 14 3 2 Storage 12 | 1 2 . . . 1 . . . . . . . 1 1 . . 1 . . . . . . . . 1 . . 1 3 . . Processor 22 | . . . . . . . . . 2 . 2 . 1 . 1 . . . . . . . 4 . . 2 1 . . 4 2 3 Hackware 23 | . . . . . 1 1 . . 1 2 9 . 1 . . . . . . . . 1 1 . . . . . 2 2 1 1 Protection 41 | . 1 1 3 2 . 4 . 3 1 . 7 . . 1 2 . 1 . 1 3 . . . 1 . 3 . 1 . 5 . 1 Artifact . | . . . . . . . . . . . . . . . . . . . . . . . . . . . . . . . . . Weapon 103 | 2 3 . 5 7 1 2 . 4 5 4 10 . 4 1 . . 2 5 2 . . 3 4 1 2 4 7 2 4 12 1 6 Energy Gun 20 | 2 . . 4 3 1 . . 3 1 . 1 . . . . . 1 . . . . . . . . . 1 . . 2 1 . Energy Cannon 14 | . . . . 1 . . . . . . . . . . . . . 3 1 . . 1 . . 1 2 2 1 1 . . 1 Ballistic Gun 22 | . . . . . . . . 1 3 3 5 . . . . . . . . . . . . . . . 2 . . 8 . . Ballistic Cannon 25 | . . . . . . . . . . . 2 . 3 1 . . . 1 1 . . 2 3 1 . 1 2 1 2 . . 5 Launcher 9 | . 2 . 1 1 . . . . 1 1 . . . . . . . 1 . . . . . . . 1 . . . 1 . . Special Weapon 9 | . 1 . . 1 . . . . . . 2 . . . . . 1 . . . . . 1 . 1 . . . 1 1 . . Impact Weapon 3 | . . . . 1 . 1 . . . . . . 1 . . . . . . . . . . . . . . . . . . . Slashing Weapon . | . . . . . . . . . . . . . . . . . . . . . . . . . . . . . . . . . Piercing Weapon . | . . . . . . . . . . . . . . . . . . . . . . . . . . . . . . . . . Special Melee Weapon 1 | . . . . . . 1 . . . . . . . . . . . . . . . . . . . . . . . . . . Unidentified Prototypes 38 | . . . 1 2 . . . 1 . . 1 . 3 . 1 . . 1 . 2 . . . . 1 4 8 . 1 4 . 8 Corrupted Parts 7 | . . . . . . . . . . . . . . . . . . . . . . 5 . . . . . . . 1 . 1 System Corruption 25 | . . . . . . . . . . . . . . . . . . . . . . 17 . . . . . . . 4 . 4 Parts Lost 84 | . . 2 2 1 . 4 . 1 1 . 28 . . . 2 . . 2 4 . . 7 3 2 1 . 1 2 . 16 2 3 Power 18 | . . . 1 . . . . . . . 7 . . . 1 . . 1 1 . . 2 . 1 1 . 1 . . 1 . 1 Propulsion 15 | . . 1 . . . . . . . . 8 . . . 1 . . . . . . 1 . . . . . . . 4 . . Utility 35 | . . 1 . 1 . 3 . . 1 . 7 . . . . . . . 2 . . 3 3 1 . . . 1 . 9 1 2 Weapon 16 | . . . 1 . . 1 . 1 . . 6 . . . . . . 1 1 . . 1 . . . . . 1 . 2 1 . Highest Loss Streak 11 | . . 2 1 1 . 2 . 1 1 . 11 . . . 2 . . 1 2 . . 6 2 1 1 . 1 2 . 4 1 1 To Critical Strikes . | . . . . . . . . . . . . . . . . . . . . . . . . . . . . . . . . . Average Backups 19 | 3 12 19 19 24 23 24 23 23 24 24 22 4 5 12 17 17 18 18 17 19 19 18 18 18 19 19 18 18 18 20 23 21 Power . | . . . 1 2 2 1 1 1 1 . 1 . . 1 1 1 1 . . 1 1 . 1 1 . . . . . . 1 1 Propulsion 2 | 1 2 2 1 5 6 6 5 5 4 4 3 . . 2 2 3 3 1 2 2 2 1 1 2 2 2 1 2 1 . . 2 Utility 7 | . 2 4 6 4 2 3 4 5 9 10 8 1 2 3 6 7 6 8 8 10 10 9 8 8 9 11 11 10 11 9 9 6 Weapon 6 | . 6 12 9 10 11 10 10 10 8 6 5 1 1 3 6 6 6 5 5 5 5 5 4 5 5 4 3 4 4 8 9 9 Tool/Special . | . . . . . . . . . . . . . . . . . . . . . . . . . . . . . . . . . Unused Backups 85 | . 2 2 9 4 1 1 . 1 3 2 6 . 1 2 . . 1 5 1 2 . 1 2 . . 7 5 1 2 9 2 13 Power 4 | . . 1 1 . . . . . . . . . . . . . . . . 1 . . . . . . . . . . . 1 Propulsion 16 | . 1 . . 3 . . . . . . 1 . . . . . . . . . . 1 . . . 1 1 . . . 1 7 Utility 37 | . . . 1 1 . . . 1 2 2 5 . 1 1 . . 1 1 1 1 . . . . . 3 4 1 2 6 . 3 Weapon 23 | . 1 1 7 . . 1 . . 1 . . . . 1 . . . 4 . . . . . . . 3 . . . 2 1 1 Tool/Special 5 | . . . . . 1 . . . . . . . . . . . . . . . . . 2 . . . . . . 1 . 1 Average Slot Usage (%) 90 | . 99 100 99 99 97 99 99 95 84 84 90 93 92 88 85 75 91 83 81 83 88 83 87 87 88 89 89 83 90 85 85 87 Engine 5 | . 14 14 10 11 9 9 7 7 7 6 1 13 6 6 7 13 13 9 1 5 5 3 3 5 2 . . . . . . . Core 2 | . . . . . . . . . . . 8 . 5 6 4 . . . 3 . . 1 6 4 5 3 . . . . 4 5 Reactor 3 | . . . . . . . . . . . . . . . . . . 1 5 5 5 4 . . 2 9 13 8 12 11 8 6 Treads 8 | . 23 14 27 32 27 27 23 23 7 7 9 . . 5 1 . . . . . . . . . . . . . . . . . Leg 10 | . . . 1 . . . . . . . . 20 20 11 17 20 20 18 16 16 17 16 20 21 21 18 19 20 21 18 16 16 Wheel 1 | . 4 13 3 . . . . . 6 7 4 . . 2 . . . . . . . . . . . . . . . . . . Device 9 | . . . 10 11 9 8 14 14 6 . 2 6 . . . . . 4 10 11 11 8 9 9 9 16 18 16 20 16 19 20 Storage 6 | . 14 14 11 11 9 9 7 7 7 7 5 . 2 6 6 6 6 5 5 5 5 5 5 5 5 4 4 4 4 4 4 4 Processor 9 | . . . . . . . . . 7 15 13 13 13 13 13 13 13 11 11 11 11 11 14 15 15 15 14 13 13 10 13 14 Hackware 4 | . . . . . 7 9 15 7 7 7 11 13 16 13 13 13 12 5 . . . . 2 . . . . . . 3 . . Protection 7 | . 13 14 11 11 9 9 7 10 7 6 7 6 6 6 5 6 6 5 5 6 11 10 6 10 10 4 4 5 4 5 8 8 Energy Gun 7 | . 27 28 21 21 26 25 22 21 14 . . . . . . . 5 1 . . . . . . . . . . . . . . Energy Cannon 1 | . . . . . . . . . . . . . . . . . . 2 4 4 3 3 5 5 4 4 5 4 3 1 . 1 Ballistic Gun 4 | . . . . . . . . . 7 19 18 13 4 . . . . . . . . . . . . . . . . 9 10 6 Ballistic Cannon 4 | . . . . . . . . . . . . . 7 13 13 1 12 11 10 11 11 11 9 9 9 8 7 7 7 1 . 3 Peak Build Rating 291 | 6 9 9 22 26 30 32 36 47 51 53 63 63 70 68 68 67 73 94 96 112 102 105 124 122 124 146 172 188 189 270 280 291 Average Rating 96 | 5 7 8 17 22 28 28 35 41 48 50 55 62 63 63 66 56 71 88 93 96 102 100 112 119 121 137 155 170 182 208 270 277 On Entrance 86 | . 6 9 9 22 23 30 29 36 44 50 53 63 63 66 62 67 67 69 94 95 102 102 102 121 119 124 143 160 185 182 270 274 Avg Prop Armor Cover (%) 2 | . 5 11 5 . . . . . 5 6 4 . . 3 . . . 1 . . . 1 . . . . 2 . . 3 . . Naked Turns . | . . . . . . . . . . . . . . . . . . . . . . . . . . . . . . . . . Heaviest Build 150 | 12 90 50 102 103 105 105 103 119 115 115 134 45 61 93 95 95 95 104 107 107 106 110 110 113 116 138 139 143 150 150 129 131 Greatest Support 196 | 40 40 10 60 60 60 69 60 60 60 28 63 55 55 55 55 55 55 90 85 85 85 106 134 131 131 134 138 168 168 196 180 182 Greatest Overweight (x) 10 | . 8 4 5 1 1 1 1 1 4 5 10 . 1 5 5 1 1 7 1 2 1 2 1 . . 1 1 . . . . . Average Overweight (x) 1 | . 3 4 2 1 1 1 1 1 3 3 3 . . 2 1 1 1 1 1 1 1 . . . . . . . . . . . Largest Inventory Capacity 25 | 8 25 20 25 25 25 25 25 25 25 25 25 5 10 20 20 20 20 20 20 20 20 20 20 20 20 20 20 20 20 25 25 25 Average Capacity 21 | 7 13 20 20 25 25 25 25 25 25 25 24 5 6 14 20 20 20 20 20 20 20 20 20 20 20 20 20 20 20 22 25 25 Most Carried 25 | 7 20 20 22 25 25 25 25 25 25 25 25 5 10 20 20 20 20 20 20 20 20 20 20 20 20 20 20 20 20 25 25 25 Average Carried 20 | 3 12 19 19 24 23 24 23 24 24 24 22 4 6 13 19 19 19 19 18 19 20 19 19 19 19 19 19 19 19 21 24 24 Final Capacity 25 | 8 20 20 25 25 25 25 25 25 25 25 5 5 10 20 20 20 20 20 20 20 20 20 20 20 20 20 20 20 20 25 25 25 Final Carried 25 | 7 20 20 22 25 25 24 25 25 25 25 5 5 10 20 20 20 20 20 20 20 20 19 20 20 20 20 20 20 20 25 22 25 Class Distribution -------------------- 24% | Scavenger-Gunner 15% | Scavenger-Mutant 13% | Scavenger-Tank 11% | Bothacker-Gunner 9% | Mutant 7% | Scavenger-Skirmisher 4% | Skirmisher 3% | Gunner Dominant Class ---------------- Mutant | -10/Materials Mutant | -10/Mines Scavenger-Mutant | -9/Materials Scavenger-Mutant | -9/Storage Scavenger-Tank | -8/Materials Scavenger-Tank | -8/Garrison Scavenger-Tank | -7/Factory Scavenger-Tank | -7/Garrison Bothacker-Gunner | -7/Factory Bothacker-Gunner | -7/Garrison Bothacker-Gunner | -6/Factory Scavenger-Gunner | -6/Waste Scavenger-Mutant | -6/Factory Scavenger-Mutant | -6/Lower Caves Mutant | -6/Lower Caves Mutant | -6/Data Miner Derelict-Gunner | -5/Proximity Caves Gunner | -5/Factory Scavenger-Gunner | -5/Extension Scavenger-Gunner | -5/Cetus Scavenger-Gunner | -5/Archives Scavenger-Gunner | -5/Hub_04(d) Scavenger-Gunner | -4/Factory Scavenger-Gunner | -4/Upper Caves Scavenger-Gunner | -4/Upper Caves Scavenger-Skirmisher | -3/Research Scavenger-Skirmisher | -3/Testing Scavenger-Skirmisher | -2/Research Scavenger-Skirmisher | -2/Quarantine Scavenger-Gunner | -2/Protoforge Scavenger-Gunner | -1/Access Scavenger-Gunner | -1/Command Resources | -11 -10 -10 -9 -9 -8 -8 -7 -7 -7 -7 -6 -6 -6 -6 -6 -6 -5 -5 -5 -5 -5 -5 -4 -4 -4 -3 -3 -2 -2 -2 -1 -1 ----------- Run | Yrd Mat Min Mat Sto Mat Gar Fac Gar Fac Gar Fac Was Fac Low Low Dat Pro Fac Ext Cet Arc Hub Fac Upp Upp Res Tes Res Qua Frg Acc Com Matter Collected 26566 | 253 170 65 310 412 . 594 . 403 350 774 3060 . 417 340 301 . 166 913 829 134 . 594 875 710 454 1248 1608 1012 923 5296 2114 2241 Remotely 4055 | . . . . . . . . . . . . . . . . . . . 144 . . 156 97 . . . 328 160 316 959 763 1132 Salvage Created 27583 | 106 667 247 1333 1613 49 1432 . 1166 511 923 2112 . 568 389 125 . . 976 999 239 . 396 1243 481 324 446 974 980 1278 4190 2502 1314 Parts 1286 | 7 53 15 68 83 . 63 . 38 21 34 109 . 17 11 1 . 4 60 26 10 . 17 62 37 13 29 40 18 68 252 106 24 Haulers Intercepted 25 | . 2 . 5 6 . . . . 1 . 2 . 1 . 1 . . 1 . . . . 3 . . 1 1 . . . 1 . Recyclers Shooed 18 | . 4 1 . 1 . . . . . . 4 . . . . . . 1 . . . . 1 . . . 4 1 . . . 1 Parts Field Recycled . | . . . . . . . . . . . . . . . . . . . . . . . . . . . . . . . . . Retrieved Matter . | . . . . . . . . . . . . . . . . . . . . . . . . . . . . . . . . . Parts Self-Destructed 56 | . . . . . . . . . . . . . . . 14 . 4 . . . . . . 27 11 . . . . . . . Prevented . | . . . . . . . . . . . . . . . . . . . . . . . . . . . . . . . . . Parts Restored 1 | . . . . . . . . . . . . . . . . . . . . . . . . . . . . . . 1 . . Faulty 1 | . . . . . . . . . . . . . . . . . . . . . . . . . . . . . . 1 . . Kills | -11 -10 -10 -9 -9 -8 -8 -7 -7 -7 -7 -6 -6 -6 -6 -6 -6 -5 -5 -5 -5 -5 -5 -4 -4 -4 -3 -3 -2 -2 -2 -1 -1 ------- Run | Yrd Mat Min Mat Sto Mat Gar Fac Gar Fac Gar Fac Was Fac Low Low Dat Pro Fac Ext Cet Arc Hub Fac Upp Upp Res Tes Res Qua Frg Acc Com Combat Hostiles Destroyed 523 | . 15 4 29 22 1 29 . 29 14 25 29 . 10 7 2 . 2 16 20 3 . 10 21 22 19 9 14 15 19 83 39 15 Melee 3 | . . . . . . . . 1 . . . . 1 . . . . . 1 . . . . . . . . . . . . . Guns 217 | . 12 3 19 15 1 21 . 19 10 13 23 . 1 . . . . . . . . . . . . . . . 1 47 30 2 Cannons 133 | . . . . . . . . . . . 2 . 4 7 2 . . 12 19 . . 5 11 6 6 3 12 7 12 14 . 11 AOE 136 | . 3 1 10 6 . 6 . 4 3 12 2 . 2 . . . 2 4 . . . 5 9 16 12 6 . 6 4 17 6 . Classes Destroyed 30 | 3 6 . 2 1 1 1 . 1 1 . 2 . . 1 . . 1 1 1 . . . . . 1 . . . 1 5 . 1 Worker 16 | 1 1 . 2 1 . . . . . . 2 . . . . . . . . . . 3 1 . . . . 2 . 1 2 . Builder 26 | . 1 1 . 3 . . . . . . 3 . . . . . . 9 . . . 1 3 . . 1 1 1 . 1 1 . Tunneler 4 | 2 . . . . . . . . . . 1 . . . . . . . . . . . . . . . . 1 . . . . Hauler 25 | . 2 . 5 6 . . . . 1 . 2 . 1 . 1 . . 1 . . . . 3 . . 1 1 . . . 1 . Recycler 24 | 1 . 1 2 5 . . . . . . 2 . 1 . . . . 2 1 . . . 2 . . . 1 3 . . 1 2 Mechanic 3 | . . . 2 . . . . . . . . . . . . . . . . . . . . . . . . . . . 1 . Operator 9 | . 1 . 3 1 . . . . . . . . . . . . . . . . . . . . . . . 1 3 . . . Drone 13 | . . . . . . . . . . . . . . . . . 2 . . . . . . . . . . . . 8 3 . Watcher 11 | . 2 . 1 1 . . . . . . 1 . . . . . . 2 1 . . . . . . . . . 1 1 1 . Swarmer 107 | . 3 . 15 . . . . 9 6 3 1 . 3 . . . . 4 . . . . 9 18 4 7 . . 5 8 12 . Saboteur 1 | . . . . . . . . . . . . . . . . . . . . . . . . . . . . . . 1 . . Grunt 139 | . 12 4 7 12 . 19 . 5 4 11 9 . 5 . 1 . . 6 10 . . 2 2 . 5 . 6 6 2 1 10 . Brawler 11 | . . . . . . 1 . 2 . 3 . . 1 . . . . . 1 . . . . . 1 . . 1 . . 1 . Duelist 12 | . . . . 1 . . . 2 . 6 . . . . . . . 1 . . . . . . 1 . . . . . 1 . Protector 2 | . . . . . . . . . . . 1 . . . . . . . . . . 1 . . . . . . . . . . Researcher 2 | . . . . . . . . . . . . . . . . . . . . . . . . . . . . . . 2 . . Sentry 65 | . . . 7 9 . 9 . 7 2 . 1 . . . . . . . 6 . . 1 2 2 1 2 . 2 . 9 4 1 Demolisher 1 | . . . . . . . . . . . . . . . . . . . 1 . . . . . . . . . . . . . Specialist 9 | . . . . . . . . 1 . . 4 . . . . . . . . . . 4 . . . . . . . . . . Hunter 27 | . . . . . 1 . . 3 . . 4 . . . 1 . . 2 . . . . 6 . . . . 4 2 4 . . Programmer 70 | . . . . . . . . . 2 2 6 . 1 . . . . 2 1 . . . 2 2 . . 6 2 9 27 8 . Behemoth 2 | . . . . . . . . . . . . . . . . . . 1 1 . . . . . . . . . . . . . Cetus Guard 3 | . . . . . . . . . . . . . . . . . . . . 3 . . . . . . . . . . . . Enhanced Q-Series 13 | . . . . . . . . . . . . . . . . . . . . . . . . . . . . . . . . 13 Lightning 3 | . . . . . . . . . . . . . . . . . . . . . . 3 . . . . . . . . . . Hotshot 5 | . . . . . . . . . . . . . . . . . . . . . . . . . . . . . . 5 . . Decapitator 13 | . . . . . . . . . . . . . . . . . . . . . . . . . . . . . . 13 . . Immortal 5 | . . . . . . . . . . . . . . . . . . . . . . . . . . . . . . 5 . . Striker 1 | . . . . . . . . . . . 1 . . . . . . . . . . . . . . . . . . . . . Fortress 1 | . . . . . . . . . . . . . . . . . . . . . . . . . . . . . 1 . . . V-Series 2 | . . . . . . . . . . . . . . . . . . . . . . . . . . . . . . 2 . . Protovariant X 1 | . . . . . . . . . . . . . . . . . . . . . . . . . . . 1 . . . . . Decomposer 1 | . . . . . . . . . . . . . . . 1 . . . . . . . . . . . . . . . . . Packrat 1 | . . . . . . . . . . . . . . . . . . . . . . . . . 1 . . . . . . . Tinkerer 1 | . . . . . . . . . . . . . . . . . . . . . . . . . . . . . . 1 . . Assembled 7 | . . . . . . . . . . . . . . . . . . . . . . . . . 7 . . . . . . . Thug 4 | . . . . . . . . . . . . . . 4 . . . . . . . . . . . . . . . . . . Savage 2 | . . . . . . . . . . . . . . 1 . . . . 1 . . . . . . . . . . . . . Butcher 2 | . . . . . . 1 . . . . . . . 1 . . . . . . . . . . . . . . . . . . Mutant 1 | . . . . . . . . . . . . . . 1 . . . . . . . . . . . . . . . . . . Infiltrator 1 | . . . . . . . . . . . 1 . . . . . . . . . . . . . . . . . . . . . Best Kill Streak 23 | 2 3 2 8 6 1 4 . 4 4 6 7 . 3 2 1 . 2 9 3 2 . 9 8 8 7 4 3 12 5 9 23 5 Combat Bots Only 21 | . 3 2 4 5 1 4 . 4 4 6 7 . 3 2 1 . 2 5 3 2 . 6 6 7 7 4 3 9 5 9 21 5 Max Kills in Single Turn 5 | 1 3 1 4 2 1 2 . 4 2 2 2 . 2 1 1 . 1 4 3 1 . 2 3 4 5 4 1 4 4 3 4 1 Gunslinging 1 | . . . . . . 1 . . . . 1 . . . . . . . . . . . . . . . . . . 1 1 . Exploded 5 | . 3 1 3 2 . 1 . 4 2 2 2 . 2 . . . 1 3 . . . 1 3 4 5 4 . 3 4 3 3 . Melee 1 | . . . . . . . . 1 . . . . 1 . . . . . 1 . . . . . . . . . . . . . Uniques/NPCs Destroyed 3 | . . . . . . . . . . . 1 . . . . . . . . . . . . . . . 1 . . . . 1 CL-0N3 (-6/Factory) 6S-H0T (-3/Testing) MAIN.C Shell (-1/Command) Combat | -11 -10 -10 -9 -9 -8 -8 -7 -7 -7 -7 -6 -6 -6 -6 -6 -6 -5 -5 -5 -5 -5 -5 -4 -4 -4 -3 -3 -2 -2 -2 -1 -1 -------- Run | Yrd Mat Min Mat Sto Mat Gar Fac Gar Fac Gar Fac Was Fac Low Low Dat Pro Fac Ext Cet Arc Hub Fac Upp Upp Res Tes Res Qua Frg Acc Com Hostile Shots Fired 3130 | . 51 16 72 83 8 130 . 295 119 85 454 1 56 9 28 . . 86 85 11 . 150 142 60 46 16 58 147 48 418 223 233 Missed 1082 | . 11 5 15 20 2 39 . 88 48 26 167 . 24 3 5 . . 25 33 4 . 43 46 24 21 9 27 53 13 137 99 95 Hits 2048 | . 40 11 57 63 6 91 . 207 71 59 287 1 32 6 23 . . 61 52 7 . 107 96 36 25 7 31 94 35 281 124 138 Melee 45 | . . . . 3 . . . 2 . 1 4 1 . . . . . 3 . . . . . . 1 . . . . 30 . . Projectile 2003 | . 40 11 57 60 6 91 . 205 71 58 283 . 32 6 23 . . 58 52 7 . 107 96 36 24 7 31 94 35 251 124 138 AOE 33 | . . . . . . . . . . . 15 . . . . . . . 3 . . . . . . . . . . 2 3 10 Critical Strikes 113 | . 1 . . 2 . 3 . 5 . 3 11 . . . . . . 3 2 1 . 3 11 1 . . 2 2 6 31 15 11 Actively Blocked 67 | . . . . . . . . . . . . . . . . . . . . . . . . . . . 2 2 6 31 15 11 Part Disruptions 17 | . . . . . . . . . . . . . . . . . . . . . . 1 . . . . 2 . . 2 1 11 Damage Taken 38133 | . 480 162 726 938 98 1445 . 2042 819 828 5210 37 444 77 431 . . 1273 1203 147 . 2282 1776 669 469 246 609 2202 1002 8137 1944 2437 Core 3221 | . 67 31 117 59 22 143 . 111 58 105 518 . 38 16 23 . . . 107 41 . 340 127 22 32 . 13 140 . 666 139 286 Absorbed by Shields 4266 | . . . . . . 33 . 156 . 17 50 . . . . . . . 207 50 . . . . . 6 76 . . 199 1098 2374 Redirected to Shielding 272 | . . . . . . . . . . . . . . . . . . . . . . . . . . . . . . 272 . . Ignored by Resistances 1272 | . . . . . . . . 49 . . 528 . 94 18 . . . 33 . . . . . 51 . . . . . 13 159 327 Regen/Repaired (Parts) 7005 | . . . 11 413 . 42 70 807 117 138 333 . . . . . . 687 534 . . . 1245 . . 783 . . . 773 533 519 Core Remaining (%) 66 | 100 . 60 . 56 . 70 . . . 60 . . . . . . 30 . . . . 51 . . 84 . 99 . . 44 . 73 Volleys Fired 1625 | 4 65 14 83 83 4 69 1 64 29 54 125 . 21 11 12 3 5 92 53 14 21 32 55 20 41 31 87 46 71 215 94 106 Largest 3 | 2 2 2 2 2 3 3 3 3 3 3 3 . 2 2 2 1 1 3 3 1 1 3 3 3 3 3 3 3 3 3 3 3 Hottest 260 | 100 100 100 130 112 168 168 168 199 199 69 120 . 66 66 66 5 36 156 184 81 90 184 198 200 192 201 251 250 250 250 130 260 Shots Fired 3313 | 8 127 27 159 156 12 172 3 184 79 119 327 . 30 23 25 3 5 124 142 14 21 49 98 38 55 40 178 85 103 441 211 255 Gun 1887 | 8 124 26 152 148 12 159 3 183 76 98 287 . 4 . . . . 2 . . . . . . . . 2 . 3 310 194 96 Cannon 1258 | . . . . . . . . . . . 22 . 19 23 25 . . 121 140 12 18 35 93 31 46 35 176 80 98 121 9 154 Launcher 108 | . 2 1 7 8 . 13 . 1 3 21 2 . 1 . . . 2 1 . . . 10 4 7 9 3 . 5 1 5 2 . Special 60 | . 1 . . . . . . . . . 16 . 6 . . 3 3 . 2 2 3 4 1 . . 2 . . 1 5 6 5 Kinetic 1572 | . . . . . . . . . 22 98 298 . 23 23 25 . . 46 90 . . 22 52 22 18 9 76 36 30 333 180 169 Thermal 1504 | 8 125 26 152 148 12 159 3 183 54 . 11 . . . . . . 74 50 . 18 13 26 9 28 26 102 44 71 72 9 81 Explosive 108 | . 2 1 7 8 . 13 . 1 3 21 2 . 1 . . . 2 1 . . . 10 4 7 9 3 . 5 1 5 2 . Electromagnetic 70 | . . . . . . . . . . . . . . . . . . 3 . 12 . . 15 . . . . . . 26 14 . Robot Hit Streak 61 | 3 10 5 11 10 5 20 2 16 25 29 31 . 7 8 12 1 4 15 23 10 7 18 11 6 6 8 12 37 12 61 43 35 Robot Miss Streak 6 | 2 4 1 4 4 2 5 1 6 2 3 4 . 3 1 3 2 . 3 2 1 . 2 3 3 3 1 4 4 2 4 2 5 Penetration Max 2 | . . . . . . . . . . . 1 . . . . . . . 1 . . . 1 1 . . 1 . . 1 2 1 Secondary Targets 49 | . . 1 1 1 . 3 . 4 3 3 6 . . . . . . . . . . . . . . . . . . 12 15 . Max Gunslinging Chain 1 | . . 1 1 1 . 1 . 1 1 1 1 . . . . . . . . . . . . . . . . . . 1 1 . Shots Hit Robots 2172 | 5 74 19 101 101 8 105 2 135 60 94 239 . 22 17 17 1 3 55 103 11 6 37 64 18 23 10 102 58 38 297 164 183 Core Hits 1148 | 4 41 13 58 56 2 59 1 68 39 61 114 . 12 9 5 . 2 35 46 4 1 31 42 23 32 12 27 33 24 138 67 89 Critical Kills 50 | . . . . . . . . . . . 1 . . . . . . . . . . . . 2 2 2 4 2 4 16 14 3 Critical Parts Destroyed 108 | . . . . . . . . . . 1 5 . 2 1 . . . . . . . . . 3 2 2 4 . 3 18 25 42 Critical Strikes 264 | 1 9 . 4 13 3 12 . 8 . 1 9 . 2 1 1 . . 2 10 . . 1 4 6 5 4 10 2 7 39 42 68 Burn 51 | 1 9 . 4 13 3 12 . 8 . . . . . . . . . 1 . . . . . . . . . . . . . . Meltdown 10 | . . . . . . . . . . . . . . . . . . . . . . . . . 1 . 2 2 3 . . 2 Destroy 170 | . . . . . . . . . . 1 6 . . . . . . . . . . . . 5 3 4 6 . 4 34 41 66 Blast 28 | . . . . . . . . . . . 2 . . . 1 . . 1 10 . . 1 4 1 1 . 2 . . 5 . . Corrupt 1 | . . . . . . . . . . . . . . . . . . . . . . . . . . . . . . . 1 . Smash 4 | . . . . . . . . . . . 1 . 2 1 . . . . . . . . . . . . . . . . . . Melee Attacks 108 | . . . . 6 . 11 . 18 5 32 18 . 13 3 . . . 1 1 . . . . . . . . . . . . . Impact 97 | . . . . 6 . 10 . 18 5 24 16 . 13 3 . . . 1 1 . . . . . . . . . . . . . Slashing . | . . . . . . . . . . . . . . . . . . . . . . . . . . . . . . . . . Piercing . | . . . . . . . . . . . . . . . . . . . . . . . . . . . . . . . . . Sneak Attacks 9 | . . . . . . 1 . . . 6 . . 2 . . . . . . . . . . . . . . . . . . . Combat Hostiles . | . . . . . . . . . . . . . . . . . . . . . . . . . . . . . . . . . Follow-up Attacks . | . . . . . . . . . . . . . . . . . . . . . . . . . . . . . . . . . Damage Inflicted 92192 | 64 1123 316 2168 2616 146 2731 35 2972 1574 3583 4506 . 1248 845 694 . 113 3004 4011 352 38 2162 3827 2223 3303 974 4189 5121 2519 16293 8825 10617 Guns 31719 | 62 965 246 1535 1752 140 1817 35 2609 1375 1202 3513 . 26 . . . . 36 . . . . . . . . . . 40 8130 6717 1519 Cannons 35041 | . . . . . . . . . . . 285 . 497 738 694 . . 2275 3932 352 38 747 2482 666 769 359 4166 3096 2033 4035 . 7877 Explosions 24094 | . 158 70 541 815 . 889 . 327 199 2381 486 . 186 . . . 113 665 . . . 1415 1292 1557 2534 582 . 2025 431 4099 2108 1221 Melee 930 | . . . . . . . . . . . 222 . 539 107 . . . . 62 . . . . . . . . . . . . . Ramming 408 | 2 . . 92 49 6 25 . 36 . . . . . . . . . 28 17 . . . 53 . . 33 23 . 15 29 . . Kinetic 37688 | . . . . . . . . . 267 1202 3652 . 523 738 694 . . 1143 2761 . . 556 1206 423 291 212 1891 1349 688 8979 6255 4858 Thermal 31909 | 62 965 246 1535 1752 140 1817 35 2609 1108 . 253 . . . . . . 1382 1171 . 38 191 1119 243 961 147 2275 1747 1385 4969 . 5759 Explosive 19161 | . 158 70 541 815 . 889 . 327 199 2381 379 . 186 . . . 113 317 . . . 1415 866 1557 2051 582 . 2025 431 1751 2108 . Electromagnetic 2096 | . . . . . . . . . . . . . . . . . . 134 . 352 . . 583 . . . . . . 565 462 . Impact 930 | . . . . . . . . . . . 222 . 539 107 . . . . 62 . . . . . . . . . . . . . Slashing . | . . . . . . . . . . . . . . . . . . . . . . . . . . . . . . . . . Piercing . | . . . . . . . . . . . . . . . . . . . . . . . . . . . . . . . . . Highest Corruption 31 | . . . . . . . . . . 1 5 10 10 10 10 10 10 5 . . . 31 2 3 3 . 8 2 4 8 8 4 Average Corruption 5 | . . . . . . . . . . 1 4 9 10 10 10 10 10 4 . . . 22 1 2 3 . 7 1 2 4 4 1 Corruption Purged 56 | . . . . . . . . . . . . . . . . . . 5 . . . . . . . . . . 10 22 8 11 Corruption Blocked . | . . . . . . . . . . . . . . . . . . . . . . . . . . . . . . . . . Effects 347 | . . . . . . . . . . 2 56 3 28 34 32 3 21 21 . . . 14 15 16 19 . 22 4 17 24 13 3 Message Errors 82 | . . . . . . . . . . . 8 2 9 10 6 2 5 3 . . . 4 1 3 8 . 10 . 4 4 2 1 Matter Fused 92 | . . . . . . . . . . . 18 . 9 7 10 1 5 4 . . . 1 4 9 4 . 4 1 3 4 7 1 Heat Flow Errors 39 | . . . . . . . . . . 1 6 1 4 5 2 . 2 1 . . . 1 2 . 3 . 1 . 3 4 2 1 Energy Discharges 47 | . . . . . . . . . . . 5 . 4 6 5 . 2 6 . . . 3 4 1 2 . 1 . 1 7 . . Parts Rejected 7 | . . . . . . . . . . . 3 . . . . . . . . . . . 1 . . . . 1 . 2 . . Parts Fused 1 | . . . . . . . . . . . 1 . . . . . . . . . . . . . . . . . . . . . Data Loss (minor) 35 | . . . . . . . . . . 1 7 . . 4 6 . 3 4 . . . 3 2 . 1 . 3 . 1 . . . Data Loss (major) 12 | . . . . . . . . . . . 2 . . 1 . . 2 1 . . . 1 1 . . . . . 3 1 . . Misfires 11 | . . . . . . . . . . . 2 . . 1 2 . . 1 . . . . . 1 . . . . 2 1 1 . Alerts 9 | . . . . . . . . . . . 2 . 1 . . . 1 . . . . . . 2 . . 1 1 . . 1 . Misdirections 1 | . . . . . . . . . . . . . . . . . 1 . . . . . . . . . . . . . . . Weapon Failures 11 | . . . . . . . . . . . 2 . 1 . 1 . . 1 . . . 1 . . 1 . 2 1 . 1 . . Overload Shots . | . . . . . . . . . . . . . . . . . . . . . . . . . . . . . . . . . Overflow Damage 4256 | . . . 2 9 . . . 7 . 27 115 . 262 164 74 . . 112 48 . . 87 288 239 208 86 133 689 38 652 646 370 Projectiles 1766 | . . . . . . . . . . . . . 4 57 74 . . 64 48 . . . 59 71 54 . 133 559 38 235 . 370 Explosions 2041 | . . . 2 . . . . 7 . 27 45 . . . . . . 48 . . . 87 224 168 154 86 . 130 . 417 646 . Melee 449 | . . . . 9 . . . . . . 70 . 258 107 . . . . . . . . 5 . . . . . . . . . Knockbacks 116 | . . . 1 . . . . . . . 5 . 5 2 9 . . 3 9 . . 4 8 3 . 1 24 17 2 10 . 13 Impact 10 | . . . 1 . . . . . . . 2 . 1 . . . . 1 1 . . . . . . 1 2 . . 1 . . Kinetic 96 | . . . . . . . . . . . 3 . 4 2 6 . . 1 7 . . 4 8 2 . . 21 14 2 9 . 13 Secondary 10 | . . . . . . . . . . . . . . . 3 . . 1 1 . . . . 1 . . 1 3 . . . . Self-Inflicted Damage 693 | . 29 . 95 . . 70 . 20 . 102 48 . 44 . . . 2 62 . . . . . 19 18 . . . . 184 . . Shots 21 | . 1 . 3 . . 3 . 1 . 4 1 . 1 . . . 1 1 . . . . . 1 1 . . . . 3 . . Rammed 20 | 2 1 . 8 2 1 2 . 4 . . . . . . . . . . . . . . . . . . . . . . . . Targets Rammed 33 | 3 1 . 8 2 1 2 . 5 . . . . . . . . . 1 1 . . . 3 . . 2 2 . 1 1 . . Kicked 11 | . . . . . . . . . . . . . . . . . . 1 1 . . . 3 . . 2 2 . 1 1 . . Crushed 2 | 1 . . . . . . . 1 . . . . . . . . . . . . . . . . . . . . . . . . Highest Temperature 577 | 78 171 262 135 144 165 350 27 290 198 199 296 77 221 279 279 . 261 378 151 . . 577 265 331 258 90 387 . 129 331 215 332 Average Temperature 74 | 30 52 96 36 21 94 107 18 97 66 30 56 53 55 93 101 . 96 87 40 . . 156 87 133 38 31 110 . 62 72 49 101 Received Heat Transfer 6211 | . 264 93 192 339 . 652 . 469 144 267 909 . 177 27 90 . . 246 295 9 . 528 33 63 63 . 63 324 9 556 161 238 Effects 15 | . . . . . . 3 . 1 . . . . . . 3 . . . . . . 7 . . . . 1 . . . . . Shutdowns 4 | . . . . . . 1 . . . . . . . . . . . . . . . 2 . . . . 1 . . . . . Energy Bleed 3 | . . . . . . 1 . 1 . . . . . . . . . . . . . 1 . . . . . . . . . . Interference 3 | . . . . . . . . . . . . . . . 3 . . . . . . . . . . . . . . . . . Matter Decay 1 | . . . . . . . . . . . . . . . . . . . . . . 1 . . . . . . . . . . Short Circuit 2 | . . . . . . 1 . . . . . . . . . . . . . . . 1 . . . . . . . . . . Damage (minor) 1 | . . . . . . . . . . . . . . . . . . . . . . 1 . . . . . . . . . . Damage (core) 1 | . . . . . . . . . . . . . . . . . . . . . . 1 . . . . . . . . . . Siege Activations . | . . . . . . . . . . . . . . . . . . . . . . . . . . . . . . . . . Martial Activations . | . . . . . . . . . . . . . . . . . . . . . . . . . . . . . . . . . Shielding Activations . | . . . . . . . . . . . . . . . . . . . . . . . . . . . . . . . . . Robots Disrupted . | . . . . . . . . . . . . . . . . . . . . . . . . . . . . . . . . . Combat Hostiles . | . . . . . . . . . . . . . . . . . . . . . . . . . . . . . . . . . Robots Corrupted 21 | . . . . 1 . . . . . . 2 . 3 2 . . . . . 3 . . 2 . . . . 1 . 4 3 . Combat Hostiles 15 | . . . . . . . . . . . 2 . 2 . . . . . . 3 . . 1 . . . . . . 4 3 . Parts Fried 31 | . . . . 2 . . . . . . 1 . 4 1 . . . 2 . 4 . . 6 . . . . 3 . 6 2 . Impact Corruptions 27 | . . . 1 1 . . . . . . 2 . 6 12 . . . . . . . . 1 . . . . 4 . . . . Robots Melted 23 | . 2 . 1 2 . 2 . 5 1 . . . . . . . . . . . . . . . 1 . 2 2 3 . . 2 Combat Hostiles 18 | . . . . 1 . 2 . 5 1 . . . . . . . . . . . . . . . 1 . 2 2 2 . . 2 Parts Melted 95 | 2 4 . 11 13 . 14 . 20 10 . . . . . . . . . . . . . . . 1 . 8 3 7 2 . . Heat Transferred 39537 | 259 3515 703 3959 4662 518 4736 74 6093 2328 . 352 . . . . . . 548 444 . 37 148 738 222 881 148 1829 1127 939 3250 . 2027 Parts Sabotaged . | . . . . . . . . . . . . . . . . . . . . . . . . . . . . . . . . . Parts Stolen . | . . . . . . . . . . . . . . . . . . . . . . . . . . . . . . . . . Parts Stripped . | . . . . . . . . . . . . . . . . . . . . . . . . . . . . . . . . . Power Chain Reactions 6 | . . . . . . . . . . . . . . . . . . 3 . . . . 1 . . . . . . 2 . . Alert | -11 -10 -10 -9 -9 -8 -8 -7 -7 -7 -7 -6 -6 -6 -6 -6 -6 -5 -5 -5 -5 -5 -5 -4 -4 -4 -3 -3 -2 -2 -2 -1 -1 ------- Run | Yrd Mat Min Mat Sto Mat Gar Fac Gar Fac Gar Fac Was Fac Low Low Dat Pro Fac Ext Cet Arc Hub Fac Upp Upp Res Tes Res Qua Frg Acc Com Maximum Alert Level 5 | . 1 . 1 . . 3 2 4 3 4 2 . . . . . . 2 2 2 . 1 2 . . 1 1 2 2 5 5 3 Low Security (%) 41 | 100 97 100 71 100 100 13 . . . . . 100 100 . . . . 78 53 . 100 73 24 . . 87 77 26 5 8 . 68 Level 1 15 | . 2 . 28 . . 39 24 19 2 25 11 . . . . . . 16 18 48 . 26 7 . . 12 22 9 78 8 . . Level 2 24 | . . . . . . 20 75 30 87 9 88 . . . . . . 4 28 51 . . 67 . . . . 64 16 10 . . Level 3 9 | . . . . . . 26 . 20 10 42 . . . . . . . . . . . . . . . . . . . 24 54 31 Level 4 8 | . . . . . . . . 29 . 22 . . . . . . . . . . . . . . . . . . . 45 27 . Level 5 . | . . . . . . . . . . . . . . . . . . . . . . . . . . . . . . 3 17 . High Security . | . . . . . . . . . . . . . . . . . . . . . . . . . . . . . . . . . Max Security . | . . . . . . . . . . . . . . . . . . . . . . . . . . . . . . . . . Peak Influence 1709 | 10 208 76 251 194 68 1023 556 1360 733 1285 674 196 177 . . . . 436 582 478 175 243 660 . . 315 284 531 428 1709 1706 1056 Initial 1056 | . 3 76 7 71 68 13 536 242 714 287 674 196 102 . . . . 150 208 323 157 47 110 . . 189 87 153 279 204 1024 1056 Average 424 | 1 41 14 169 83 26 492 453 754 579 785 511 173 80 . . . . 165 253 395 157 116 409 . . 92 105 373 325 982 1205 439 Influence Increases 20084 | 20 491 119 1037 825 41 1050 49 1208 423 1078 1176 . 328 . 140 . 10 1066 1308 345 40 595 971 595 270 512 677 603 906 2611 1409 181 Destroy 0b10 Robot/C 10680 | . 300 80 580 440 20 580 . 680 280 600 700 . 220 . 120 . . 420 680 160 . 240 420 440 240 180 280 300 380 1540 760 40 Destroy 0b10 Robot/NC 715 | 20 35 10 75 85 . 5 . . 5 5 75 . 10 . 5 . 10 75 15 10 . 30 45 5 . 10 15 40 20 60 40 10 Destroy Leader 1764 | . 78 20 172 144 10 30 . 40 82 60 166 . 52 . . . . 86 74 . . 52 86 30 30 42 42 70 62 192 134 10 Allied During Kill 948 | . . . . . . . . 56 . 13 63 . 2 . 15 . . 58 372 152 . 109 . . . 18 23 . 7 23 37 . Trap Triggered on 0b10 50 | . . . . . . . . . . . 10 . . . . . . . . . . . . . . . 40 . . . . . Successful Hack 734 | . . . 31 45 11 52 49 . 22 12 3 . . . . . . 58 22 . . 18 19 . . 114 38 . 92 55 48 45 Select Force Hacks 60 | . . . 30 . . . . . . . . . . . . . . . . . . . 30 . . . . . . . . . Disable Machine 1380 | . 15 . 15 75 . . . . . . 90 . 30 . . . . 75 30 15 30 15 180 . . 30 120 30 165 300 135 30 Anti-Garrison Action 950 | . . . . . . 300 . 400 . 250 . . . . . . . . . . . . . . . . . . . . . . Destroy Structure 2008 | . 18 9 44 36 . 83 . 32 19 123 54 . 14 . . . . 144 70 8 10 116 176 . . 118 104 133 180 306 165 46 Advance Influence 150 | . . . . . . . . . . . . . . . . . . 150 . . . . . . . . . . . . . . Partial Spotted 60 | . . . . . . . . . . 15 . . . . . . . . . . . . . . . . . . . . 45 . Lose Combat Pursuer 585 | . 45 . 90 . . . . . 15 . 15 . . . . . . . 45 . . 15 15 120 . . 15 30 . 135 45 . Influence Decreases 19338 | 15 299 297 886 831 185 47 725 195 1372 204 1901 414 329 145 140 . 10 640 1156 529 297 506 586 649 545 638 559 379 1041 1265 1466 1087 Entered New Map 5965 | . 2 121 12 99 96 7 487 105 646 124 611 364 44 55 . . . . 218 255 237 90 116 227 107 93 69 121 219 159 685 596 Time Decay 10064 | 15 297 166 608 539 89 . 238 . 556 . 760 50 285 90 140 . 10 580 618 214 60 326 440 392 428 545 440 238 522 766 446 206 Lost Part 790 | . . 10 20 10 . 40 . 10 10 . 280 . . . . . . 20 40 . . 70 30 20 10 . 10 20 . 160 20 10 Lost Ally 940 | . . . . . . . . 80 10 80 250 . . . . . . 40 280 60 . 20 . 10 . . 40 . . 30 40 . Purge Threat 1579 | . . . 246 183 . . . . 150 . . . . . . . . . . . . . . . . . . . 300 150 275 275 Squads Dispatched 103 | . 4 . 5 2 1 . 2 . 3 . 18 . 3 . . . . 5 3 . . 3 10 . . 3 5 2 6 15 13 . Investigation 15 | . 2 . 2 1 1 . . . 1 . 2 . . . . . . 2 . . . . 2 . . 2 . . . . . . Extermination 36 | . . . . . . . 1 . 2 . 7 . 1 . . . . 2 . . . 1 2 . . . 3 1 4 8 4 . Reinforcement 31 | . 2 . 3 . . . 1 . . . 7 . 2 . . . . 1 2 . . 2 3 . . 1 2 1 1 . 3 . Assault 17 | . . . . . . . . . . . 2 . . . . . . . 1 . . . 3 . . . . . 1 7 3 . Garrison 4 | . . . . 1 . . . . . . . . . . . . . . . . . . . . . . . . . . 3 . Intercept . | . . . . . . . . . . . . . . . . . . . . . . . . . . . . . . . . . Searches Triggered . | . . . . . . . . . . . . . . . . . . . . . . . . . . . . . . . . . Unchained Authorized 4 | . . . . . . . . . . . 1 . . . . . . . . . . . 1 . . . 1 . . . 1 . Data Miner Redirects 7 | . . . . . . . . . . . . . . . . . . . . . . . 3 . . . . . . 4 . . Construction Impeded 6 | . . . . . . . . . . . . . . . . . . 1 1 . . . 2 . . . . . . . 2 . Haulers Reinforced 3 | . . . . . . . . . . . 2 . . . . . . . . . . . . . . . 1 . . . . . Active Scanning Responses . | . . . . . . . . . . . . . . . . . . . . . . . . . . . . . . . . . Cargo Convoy Interrupts . | . . . . . . . . . . . . . . . . . . . . . . . . . . . . . . . . . Stealth | -11 -10 -10 -9 -9 -8 -8 -7 -7 -7 -7 -6 -6 -6 -6 -6 -6 -5 -5 -5 -5 -5 -5 -4 -4 -4 -3 -3 -2 -2 -2 -1 -1 --------- Run | Yrd Mat Min Mat Sto Mat Gar Fac Gar Fac Gar Fac Was Fac Low Low Dat Pro Fac Ext Cet Arc Hub Fac Upp Upp Res Tes Res Qua Frg Acc Com Distress Signals 45 | . 3 . 10 3 1 . . . . . 3 . . . . . . . 2 2 . . 2 . . 6 1 1 . 3 . 8 Communications Jammed 90 | . . . . . . . . . . . 23 . . . . . . . . . . 4 . . . . 3 9 . 51 . . Distress Signals 88 | . . . . . . . . . . . 21 . . . . . . . . . . 4 . . . . 3 9 . 51 . . Times Spotted 759 | . 26 4 59 29 3 28 1 35 17 29 63 5 16 7 6 . 3 21 42 10 . 13 24 17 17 15 20 24 30 99 52 44 Peak Tracking Total 12 | . 3 2 5 5 3 5 1 5 3 4 5 6 4 3 5 . 2 4 6 5 . 6 5 6 7 4 4 10 7 12 9 7 Tactical Retreats 27 | . 3 . 4 . . . . . 1 . 1 . . . . . . . 3 . . 1 1 5 . . 1 1 . 5 1 . ID Masks Used 1 | . . . . . . . . . . . . . . . . . . . . . . . . . . . . . . 1 . . IFF Responses 73 | . . . . . . . . . . . . . . . . . . . . . . . . . . . . . . 73 . . Traps | -11 -10 -10 -9 -9 -8 -8 -7 -7 -7 -7 -6 -6 -6 -6 -6 -6 -5 -5 -5 -5 -5 -5 -4 -4 -4 -3 -3 -2 -2 -2 -1 -1 ------- Run | Yrd Mat Min Mat Sto Mat Gar Fac Gar Fac Gar Fac Was Fac Low Low Dat Pro Fac Ext Cet Arc Hub Fac Upp Upp Res Tes Res Qua Frg Acc Com Traps Triggered 50 | . 1 . . 1 . 12 . 7 2 5 5 . 1 . . . . 2 1 . . . 1 . . . 3 . 2 7 . . Indirectly . | . . . . . . . . . . . . . . . . . . . . . . . . . . . . . . . . . Trap Hack Attempts 72 | . . . . . . . 22 . 8 . 42 . . . . . . . . . . . . . . . . . . . . . Triggered . | . . . . . . . . . . . . . . . . . . . . . . . . . . . . . . . . . Disarmed . | . . . . . . . . . . . . . . . . . . . . . . . . . . . . . . . . . Reprogrammed 18 | . . . . . . . 4 . 1 . 7 . . . . . . . . . . . . . . . 6 . . . . . Reused 10 | . . . . . . . . . . . 4 . . . . . . . . . . . . . . . 6 . . . . . Traps Extracted . | . . . . . . . . . . . . . . . . . . . . . . . . . . . . . . . . . Installed . | . . . . . . . . . . . . . . . . . . . . . . . . . . . . . . . . . Triggered 5 | . . . . . . . . . . . 1 . . . . . . . . . . . . . . . 4 . . . . . Machines | -11 -10 -10 -9 -9 -8 -8 -7 -7 -7 -7 -6 -6 -6 -6 -6 -6 -5 -5 -5 -5 -5 -5 -4 -4 -4 -3 -3 -2 -2 -2 -1 -1 ---------- Run | Yrd Mat Min Mat Sto Mat Gar Fac Gar Fac Gar Fac Was Fac Low Low Dat Pro Fac Ext Cet Arc Hub Fac Upp Upp Res Tes Res Qua Frg Acc Com Machines Disabled 115 | . 1 . 1 5 . 3 . 3 . 3 6 . 2 . . . . 5 3 1 2 1 12 . 1 2 8 3 11 31 9 2 Max in Single Turn 5 | . 1 . 1 1 . 1 . 1 . 1 3 . 1 . . . . 1 1 1 1 1 5 . 1 1 1 1 1 2 3 1 Garrison Access 13 | . . . . 1 . . . . 1 . 1 . 1 . . . . 1 . . . . . . . 3 1 1 1 1 1 . Garrison Relay 8 | . . . . . . 2 . 3 . 3 . . . . . . . . . . . . . . . . . . . . . . Network Hub 1 | . . . . . . . . . . . . . . . . . . . . . . 1 . . . . . . . . . . Machines Repaired . | . . . . . . . . . . . . . . . . . . . . . . . . . . . . . . . . . Machines Dismantled 1 | . . . . 1 . . . . . . . . . . . . . . . . . . . . . . . . . . . . Machines Sabotaged . | . . . . . . . . . . . . . . . . . . . . . . . . . . . . . . . . . Overloaded Fab Kills . | . . . . . . . . . . . . . . . . . . . . . . . . . . . . . . . . . Hacking | -11 -10 -10 -9 -9 -8 -8 -7 -7 -7 -7 -6 -6 -6 -6 -6 -6 -5 -5 -5 -5 -5 -5 -4 -4 -4 -3 -3 -2 -2 -2 -1 -1 --------- Run | Yrd Mat Min Mat Sto Mat Gar Fac Gar Fac Gar Fac Was Fac Low Low Dat Pro Fac Ext Cet Arc Hub Fac Upp Upp Res Tes Res Qua Frg Acc Com Machines Accessed 167 | . 6 . 12 15 5 3 4 3 16 1 8 . 2 2 . 3 . 11 7 1 . 2 7 3 . 13 7 5 12 10 5 4 Terminals 83 | . 4 . 7 10 4 3 1 3 6 1 1 . 1 . . . . 5 5 1 . 2 3 . . . 5 3 8 6 1 3 Fabricators 13 | . . . . . . . . . 3 . 2 . . . . . . 2 . . . . 1 . . 4 . . . . 1 . Repair Stations 16 | . 1 . 1 2 . . 1 . 1 . 2 . . . . . . 1 1 . . . 1 . . 2 . . . 2 . 1 Recycling Units 16 | . 1 . 2 2 . . . . 1 . 2 . . . . . . 2 1 . . . 1 . . 2 . 1 . . 1 . Scanalyzers 15 | . . . 2 . . . 1 . 3 . . . . . . . . . . . . . 1 . . 2 1 . 3 1 1 . Garrison Access 16 | . . . . 1 1 . 1 . 2 . 1 . 1 . . . . 1 . . . . . . . 3 1 1 1 1 1 . Total Hacks 499 | . 21 . 33 49 16 8 13 6 41 1 23 . 4 2 . 20 . 33 21 4 . 4 39 5 . 33 29 7 34 35 11 7 Successful 248 | . 6 . 19 26 8 5 9 2 24 1 12 . 3 2 . 20 . 15 7 . . 1 24 5 . 18 10 2 10 13 4 2 Failed 246 | . 15 . 13 23 7 3 3 4 17 . 11 . 1 . . . . 18 14 4 . 3 14 . . 15 19 5 24 21 7 5 Catastrophic 53 | . 1 . 2 6 1 . 1 3 1 . . . . . . . . 3 3 . . . 2 . . 4 9 3 5 4 2 3 Database Lockouts 5 | . . . 1 . 1 . 1 . . . . . . . . . . . . . . . 1 . . . . . . 1 . . Manual 185 | . 16 . 21 14 10 5 2 1 13 . 12 . 2 . . . . 11 12 1 . 2 9 . . 8 13 4 11 12 3 3 Terminals 239 | . 15 . 22 27 12 8 3 6 11 1 4 . 2 . . . . 15 14 4 . 4 5 . . . 24 3 27 24 2 6 Fabricators 44 | . . . . . . . . . 9 . 8 . . . . . . 9 . . . . 2 . . 14 . . . . 2 . Repair Stations 66 | . 3 . 2 15 . . 4 . 4 . 5 . . . . . . 4 3 . . . 13 . . 6 . . . 6 . 1 Recycling Units 33 | . 3 . 4 5 . . . . 2 . 4 . . . . . . 3 4 . . . 2 . . 3 . 2 . . 1 . Scanalyzers 56 | . . . 5 . . . 4 . 11 . . . . . . . . . . . . . 17 . . 4 3 . 5 3 4 . Garrison Access 34 | . . . . 2 4 . 2 . 4 . 2 . 2 . . . . 2 . . . . . . . 6 2 2 2 2 2 . Terminal Hacks 88 | . 4 . 9 9 5 4 1 2 3 1 1 . . 2 . 20 . 3 3 . . 1 1 5 . . 4 . 4 5 . 1 Record 11 | . . . . . . . . . . . . . . 1 . 6 . . . . . . . 3 . . . . . 1 . . Part Schematic 12 | . . . . 2 . . . . . . . . . . . 10 . . . . . . . . . . . . . . . . Robot Schematic 2 | . . . . 1 . . . . . . . . . . . 1 . . . . . . . . . . . . . . . . Robot Analysis 6 | . 3 . 1 . 2 . . . . . . . . . . . . . . . . . . . . . . . . . . . Prototype ID Bank 8 | . 1 . 1 2 1 . . . . . . . . . . 3 . . . . . . . . . . . . . . . . Open Door 6 | . . . . 1 . 1 . 1 . . . . . 1 . . . . . . . . . 2 . . . . . . . . Level Access Points 1 | . . . . . . . . . . . . . . . . . . . . . . 1 . . . . . . . . . . Branch Access Points 4 | . . . 1 . . . . . 1 . . . . . . . . 1 . . . . 1 . . . . . . . . . Emergency Access Points 3 | . . . . . . 1 . 1 . . . . . . . . . . . . . . . . . . . . . . . 1 Terminal Index 1 | . . . . . . . . . . . . . . . . . . . . . . . . . . . . . . 1 . . Scanalyzer Index 1 | . . . 1 . . . . . . . . . . . . . . . . . . . . . . . . . . . . . Unreport Threat 8 | . . . 2 2 . . . . 1 . . . . . . . . . . . . . . . . . . . 2 1 . . Locate Traps 10 | . . . . 1 1 . 1 . . . 1 . . . . . . . 2 . . . . . . . 2 . 1 1 . . Reprogram Traps 1 | . . . . . . . . . . . . . . . . . . . . . . . . . . . 1 . . . . . Maintenance Status 1 | . . . . . . . . . . . . . . . . . . . . . . . . . . . 1 . . . . . Recall Extermination 1 | . . . . . . . . . . . . . . . . . . 1 . . . . . . . . . . . . . . Hauler Manifests 1 | . . . 1 . . . . . . . . . . . . . . . . . . . . . . . . . . . . . Registered Components 2 | . . . 1 . . . . . . . . . . . . . . 1 . . . . . . . . . . . . . . Zone Layout 5 | . . . 1 . 1 . . . 1 . . . . . . . . . 1 . . . . . . . . . 1 . . . Garrison Registry 2 | . . . . . . 1 . . . 1 . . . . . . . . . . . . . . . . . . . . . . Security Stations 1 | . . . . . . 1 . . . . . . . . . . . . . . . . . . . . . . . . . . Proto ID Catalog 1 | . . . . . . . . . . . . . . . . . . . . . . . . . . . . . . 1 . . Fabricator Hacks 7 | . . . . . . . . . 1 . 1 . . . . . . 2 . . . . 1 . . 2 . . . . . . Network Status 3 | . . . . . . . . . 1 . 1 . . . . . . . . . . . . . . 1 . . . . . . Load Schematic 1 | . . . . . . . . . . . . . . . . . . 1 . . . . . . . . . . . . . . Build 3 | . . . . . . . . . . . . . . . . . . 1 . . . . 1 . . 1 . . . . . . Repair Station Hacks 37 | . . . 2 12 . . 3 . 2 . . . . . . . . 2 2 . . . 9 . . 4 . . . 1 . . Scan Component 20 | . . . 1 6 . . 2 . 1 . . . . . . . . 1 1 . . . 5 . . 2 . . . 1 . . Repair 17 | . . . 1 6 . . 1 . 1 . . . . . . . . 1 1 . . . 4 . . 2 . . . . . . Recycling Unit Hacks 8 | . 1 . 1 1 . . . . 1 . 1 . . . . . . 2 . . . . . . . 1 . . . . . . Retrieve Components 8 | . 1 . 1 1 . . . . 1 . 1 . . . . . . 2 . . . . . . . 1 . . . . . . Scanalyzer 28 | . . . 3 . . . 3 . 9 . . . . . . . . . . . . . 10 . . . . . 1 1 1 . Insert Component 5 | . . . 1 . . . . . 2 . . . . . . . . . . . . . 2 . . . . . . . . . Analyze 5 | . . . . . . . . . 1 . . . . . . . . . . . . . 4 . . . . . . . . . Retrieve Study 18 | . . . 2 . . . 3 . 6 . . . . . . . . . . . . . 4 . . . . . 1 1 1 . Garrison Access Hacks 28 | . . . . 1 1 . 1 . 3 . 2 . 2 . . . . 2 . . . . . . . 6 2 2 2 2 2 . Unlock Access 3 | . . . . . 1 . 1 . 1 . . . . . . . . . . . . . . . . . . . . . . . Seal Access 13 | . . . . 1 . . . . 1 . 1 . 1 . . . . 1 . . . . . . . 3 1 1 1 1 1 . Coupler Status 12 | . . . . . . . . . 1 . 1 . 1 . . . . 1 . . . . . . . 3 1 1 1 1 1 . Unauthorized Hacks 52 | . 1 . 4 3 2 1 1 . 5 . 7 . 1 . . . . 4 2 . . . 3 . . 5 4 . 3 4 1 1 Terminals 23 | . . . 1 1 2 1 1 . 1 . . . 1 . . . . 2 1 . . . 1 . . . 4 . 3 3 . 1 Track 1 | . . . . . . . . . . . . . . . . . . . . . . . . . . . 1 . . . . . Assimilate 2 | . . . . . . . . . . . . . . . . . . . . . . . . . . . . . 1 1 . . Botnet 17 | . . . 1 1 2 1 1 . 1 . . . 1 . . . . 1 1 . . . 1 . . . 2 . 2 1 . 1 Operators 3 | . . . . . . . . . . . . . . . . . . 1 . . . . . . . . 1 . . 1 . . Fabricators 15 | . . . . . . . . . 3 . 4 . . . . . . 1 . . . . 1 . . 5 . . . . 1 . Report 2 | . . . . . . . . . . . 1 . . . . . . . . . . . . . . 1 . . . . . . Prioritize 3 | . . . . . . . . . . . 1 . . . . . . 1 . . . . 1 . . . . . . . . . Liberate 7 | . . . . . . . . . 2 . 1 . . . . . . . . . . . . . . 3 . . . . 1 . Haulers 3 | . . . . . . . . . 1 . 1 . . . . . . . . . . . . . . 1 . . . . . . Repair Stations 3 | . . . . . . . . . 1 . 2 . . . . . . . . . . . . . . . . . . . . . Mechanics 1 | . . . . . . . . . 1 . . . . . . . . . . . . . . . . . . . . . . . Patch 2 | . . . . . . . . . . . 2 . . . . . . . . . . . . . . . . . . . . . Recycling Units 8 | . 1 . 2 2 . . . . . . 1 . . . . . . 1 1 . . . . . . . . . . . . . Reject 8 | . 1 . 2 2 . . . . . . 1 . . . . . . 1 1 . . . . . . . . . . . . . Scanalyzers 3 | . . . 1 . . . . . . . . . . . . . . . . . . . 1 . . . . . . 1 . . Researchers 1 | . . . . . . . . . . . . . . . . . . . . . . . . . . . . . . 1 . . Extract 2 | . . . 1 . . . . . . . . . . . . . . . . . . . 1 . . . . . . . . . Garrison Access . | . . . . . . . . . . . . . . . . . . . . . . . . . . . . . . . . . Data Cores Recovered 1 | . . . . 1 . . . . . . . . . . . . . . . . . . . . . . . . . . . . Used . | . . . . . . . . . . . . . . . . . . . . . . . . . . . . . . . . . Hacking Detections 134 | . 5 . 11 12 5 2 4 2 16 . 7 . 1 . . . . 9 7 1 . 2 4 . . 10 6 4 12 8 3 3 Full Trace Events 9 | . 1 . 1 2 1 . . 1 . . . . . . . . . 2 . . . . 1 . . . . . . . . . Feedback Events . | . . . . . . . . . . . . . . . . . . . . . . . . . . . . . . . . . Feedback Blocked . | . . . . . . . . . . . . . . . . . . . . . . . . . . . . . . . . . Robot Schematics Acquired 55 | . . . . 1 . . . . . . 53 . . . . 1 . . . . . . . . . . . . . . . . Robots Built 2 | . . . . . . . . . . . . . . . . . . . . . . . . . . 2 . . . . . . Authchips . | . . . . . . . . . . . . . . . . . . . . . . . . . . . . . . . . . Time 102 | . . . . . . . . . . . . . . . . . . . . . . . . . . 102 . . . . . . Total Robot Build Rating 16 | . . . . . . . . . . . . . . . . . . . . . . . . . . 16 . . . . . . Part Schematics Acquired 25 | . . . 1 2 . . . . 1 . . . . . . 10 . . . . . . 4 . . . . . . 7 . . Parts Built 3 | . . . . . . . . . . . . . . . . . . 1 . . . . 2 . . . . . . . . . Authchips . | . . . . . . . . . . . . . . . . . . . . . . . . . . . . . . . . . Time 233 | . . . . . . . . . . . . . . . . . . 169 . . . . 64 . . . . . . . . . Total Part Build Rating 22 | . . . . . . . . . . . . . . . . . . 6 . . . . 16 . . . . . . . . . Part Studies Acquired 17 | . . . 2 . . . 3 . 6 . . . . . . . . . . . . . 3 . . . . . 1 1 1 . Parts Repaired 17 | . . . 1 6 . . 1 . 1 . . . . . . . . 1 1 . . . 4 . . 2 . . . . . . Time 823 | . . . 38 206 . . 13 . 44 . . . . . . . . 28 28 . . . 342 . . 124 . . . . . . Parts Recycled . | . . . . . . . . . . . . . . . . . . . . . . . . . . . . . . . . . Recycled Matter . | . . . . . . . . . . . . . . . . . . . . . . . . . . . . . . . . . Retrieved Matter . | . . . . . . . . . . . . . . . . . . . . . . . . . . . . . . . . . Retrieved Components 46 | . 8 . 3 10 . . . . 6 . 8 . . . . . . 9 . . . . . . . 2 . . . . . . Parts Scanalyzed 3 | . . . . . . . . . 1 . . . . . . . . . . . . . 2 . . . . . . . . . Part Schematics Acquired 3 | . . . . . . . . . 1 . . . . . . . . . . . . . 2 . . . . . . . . . Parts Damaged . | . . . . . . . . . . . . . . . . . . . . . . . . . . . . . . . . . Bothacking | -11 -10 -10 -9 -9 -8 -8 -7 -7 -7 -7 -6 -6 -6 -6 -6 -6 -5 -5 -5 -5 -5 -5 -4 -4 -4 -3 -3 -2 -2 -2 -1 -1 ------------ Run | Yrd Mat Min Mat Sto Mat Gar Fac Gar Fac Gar Fac Was Fac Low Low Dat Pro Fac Ext Cet Arc Hub Fac Upp Upp Res Tes Res Qua Frg Acc Com Used RIF Installer 4 | . . . . . . 1 . 2 . 1 . . . . . . . . . . . . . . . . . . . . . . Hotswap 1 | . . . . . . . . 1 . . . . . . . . . . . . . . . . . . . . . . . . Signal Jammer 1 | . . . . . . . . . . 1 . . . . . . . . . . . . . . . . . . . . . . Program Shield 1 | . . . . . . . . 1 . . . . . . . . . . . . . . . . . . . . . . . . Robots Hacked 42 | . . . . . . 1 . . . 3 11 . 3 . . 1 2 . 1 1 3 2 1 . . 2 . . 1 5 3 2 Non-combat 16 | . . . . . . 1 . . . 1 4 . 2 . . . . . . . . 2 . . . . . . . 1 3 2 Combat 26 | . . . . . . . . . . 2 7 . 1 . . 1 2 . 1 1 3 . 1 . . 2 . . 1 4 . . Robot Hacks Applied 48 | . . . . . . 1 . . . 3 12 . 3 . . 1 3 . 1 1 3 3 1 . . 2 . . 1 5 4 4 parse_system 12 | . . . . . . . . . . . . . . . . 1 2 . 1 1 3 1 1 . . 2 . . . . . . generate_echo 2 | . . . . . . . . . . . . . . . . . . . . . . . . . . . . . . . 1 1 find_chute 1 | . . . . . . . . . . . 1 . . . . . . . . . . . . . . . . . . . . . map_walls 1 | . . . . . . . . . . . . . . . . . . . . . . . . . . . . . . . 1 . purge_threat 4 | . . . . . . . . . . . . . . . . . . . . . . . . . . . . . . . 2 2 block_reporting 1 | . . . . . . . . . . . . . . . . . . . . . . . . . . . . . . . . 1 redirect_shields 1 | . . . . . . . . . . . 1 . . . . . . . . . . . . . . . . . . . . . disable_scanner 2 | . . . . . . . . . . . . . . . . . . . . . . . . . . . . . . 2 . . find_garrison 1 | . . . . . . . . . . . 1 . . . . . . . . . . . . . . . . . . . . . spike_heat 2 | . . . . . . . . . . . 2 . . . . . . . . . . . . . . . . . . . . . overload_power 1 | . . . . . . . . . . . . . . . . . . . . . . 1 . . . . . . . . . . amplify_resonance 3 | . . . . . . . . . . . 1 . 1 . . . . . . . . 1 . . . . . . . . . . overwrite_iff 1 | . . . . . . . . . . 1 . . . . . . . . . . . . . . . . . . . . . . streamctrl_high 3 | . . . . . . . . . . . . . 1 . . . . . . . . . . . . . . . . 2 . . formatsys_low 5 | . . . . . . 1 . . . 1 1 . 1 . . . . . . . . . . . . . . . . 1 . . formatsys_high 8 | . . . . . . . . . . 1 5 . . . . . 1 . . . . . . . . . . . 1 . . . Relay Couplers Released 51 | . . . . . . 8 . 11 4 11 1 . 3 . . . . 3 . . . . . . . 3 . . 2 3 2 . Machine Destruction 51 | . . . . . . 8 . 11 4 11 1 . 3 . . . . 3 . . . . . . . 3 . . 2 3 2 . Attached 18 | . . . . . . 1 . . . 2 8 . 1 . . . . . . . . 1 . . . . . . 1 2 1 1 Fabnet Peak Effective % . | . . . . . . . . . . . . . . . . . . . . . . . . . . . . . . . . . Robots Rewired 20 | . . . . . . . . 2 . 2 . . . 2 . . . . 14 . . . . . . . . . . . . . Allies Hacked 5 | . . . . . . . . . . 1 3 . . . . . . . . . . . . . . . . . . . 1 . Hacks Repelled . | . . . . . . . . . . . . . . . . . . . . . . . . . . . . . . . . . Allies | -11 -10 -10 -9 -9 -8 -8 -7 -7 -7 -7 -6 -6 -6 -6 -6 -6 -5 -5 -5 -5 -5 -5 -4 -4 -4 -3 -3 -2 -2 -2 -1 -1 -------- Run | Yrd Mat Min Mat Sto Mat Gar Fac Gar Fac Gar Fac Was Fac Low Low Dat Pro Fac Ext Cet Arc Hub Fac Upp Upp Res Tes Res Qua Frg Acc Com Total Allies 70 | . . . . . . 2 . 4 . 5 15 . 2 2 . . 2 . 25 5 . . . . . 2 . . 1 3 2 . Largest Group 13 | . . . . . . 1 1 5 1 4 7 . 1 2 2 . 2 2 13 12 12 5 . . . 2 2 . 1 2 2 . Highest-Rated Group 817 | . . . . . . 25 23 129 23 129 270 . 32 50 50 . 160 160 472 817 817 356 . . . 128 128 . 58 128 128 . Highest-Rated Ally 159 | . . . . . . 25 23 31 23 40 90 . 32 25 25 . 96 96 159 159 159 96 . . . 64 64 . 58 64 64 . Total Orders 42 | . . . . . . 1 2 4 . 15 11 . . . . . . . . . . . . 1 . . 2 . 1 5 . . STAY 24 | . . . . . . . 1 3 . 7 7 . . . . . . . . . . . . . . . 1 . 1 4 . . FOLLOW 7 | . . . . . . . 1 . . 2 3 . . . . . . . . . . . . . . . 1 . . . . . AID 10 | . . . . . . 1 . 1 . 6 1 . . . . . . . . . . . . . . . . . . 1 . . EXPLORE 1 | . . . . . . . . . . . . . . . . . . . . . . . . 1 . . . . . . . . Ally Attacks 408 | . . . . . . 2 . 29 . 16 130 . 2 1 14 . 1 35 94 30 . 14 . . . 15 9 . 2 5 9 . Total Damage 10243 | . . . . . . 31 . 589 . 692 2793 . 73 . 470 . 47 1198 1900 702 . 495 . . . 454 262 . 113 158 266 . Kills 73 | . . . . . . . . 5 . 5 21 . 1 . 4 . . 6 15 7 . 4 . . . 1 1 . . . 3 . Allies Corrupted 9 | . . . . . . . . . . 1 1 . . . . . . . . . . 3 . . . . 1 . . 1 2 . Allies Melted 2 | . . . . . . . . . . . . . . . . . . . . . . . . . . . . . . . . 2 Intel | -11 -10 -10 -9 -9 -8 -8 -7 -7 -7 -7 -6 -6 -6 -6 -6 -6 -5 -5 -5 -5 -5 -5 -4 -4 -4 -3 -3 -2 -2 -2 -1 -1 ------- Run | Yrd Mat Min Mat Sto Mat Gar Fac Gar Fac Gar Fac Was Fac Low Low Dat Pro Fac Ext Cet Arc Hub Fac Upp Upp Res Tes Res Qua Frg Acc Com Active Infowar (turns) 12404 | . . . . . . . 500 1749 80 . . . . . . . . . . . . . 338 487 979 1843 1319 460 1430 2555 577 87 Optics 87 | . . . . . . . . . . . . . . . . . . . . . . . . . . . . . . . . 87 Sensors 7481 | . . . . . . . . . . . . . . . . . . . . . . . 338 487 979 1749 1033 313 1193 812 577 . Terrain 5755 | . . . . . . . . . . . . . . . . . . . . . . . . . . 1755 805 319 1109 1767 . . Seismic 2329 | . . . . . . . 500 1749 80 . . . . . . . . . . . . . . . . . . . . . . . Jamming 4728 | . . . . . . . . . . . . . . . . . . . . . . . . . . 1104 1247 399 1048 930 . . ID Mask 141 | . . . . . . . . . . . . . . . . . . . . . . . . . . . . . . 141 . . Robot Analysis Total 101 | . 3 . 1 . 2 . . . . . 95 . . . . . . . . . . . . . . . . . . . . . Derelict Logs Recovered 6 | . . 1 . . . . . . . . . . . . 1 . 1 . . . . . . 1 2 . . . . . . . Drone Launches 1 | . . . . . . . . . . . . . . . . . . . . . . . . 1 . . . . . . . . Drone Recoveries . | . . . . . . . . . . . . . . . . . . . . . . . . . . . . . . . . . Exploration | -11 -10 -10 -9 -9 -8 -8 -7 -7 -7 -7 -6 -6 -6 -6 -6 -6 -5 -5 -5 -5 -5 -5 -4 -4 -4 -3 -3 -2 -2 -2 -1 -1 ------------- Run | Yrd Mat Min Mat Sto Mat Gar Fac Gar Fac Gar Fac Was Fac Low Low Dat Pro Fac Ext Cet Arc Hub Fac Upp Upp Res Tes Res Qua Frg Acc Com Turns Passed 42879 | 122 2015 875 2133 2220 264 1898 501 1819 1627 1550 4185 108 767 937 860 161 583 1790 2063 445 131 723 1096 926 1052 1853 1444 514 1447 4307 1117 1346 Spaces Moved 20197 | 57 654 582 1002 812 121 687 206 688 894 853 1686 85 459 514 406 80 295 681 746 174 36 242 569 662 758 1269 665 258 776 2065 669 546 Core 12 | 3 . . . . . . . . . . 9 . . . . . . . . . . . . . . . . . . . . . Treads 3871 | 54 312 . 638 812 121 687 206 688 21 1 317 . . . 14 . . . . . . . . . . . . . . . . . Legs 11780 | . . . . . . . . . . . 131 85 459 311 375 80 295 609 746 174 36 242 569 662 758 1269 665 258 776 2065 669 546 Wheels 4534 | . 342 582 364 . . . . . 873 852 1229 . . 203 17 . . 72 . . . . . . . . . . . . . . Hover . | . . . . . . . . . . . . . . . . . . . . . . . . . . . . . . . . . Flight . | . . . . . . . . . . . . . . . . . . . . . . . . . . . . . . . . . Fastest Speed 50 | 50 140 140 155 200 200 200 200 200 135 135 50 120 120 120 175 190 190 185 209 209 209 126 117 117 121 115 116 118 116 95 95 100 Average Speed 149 | 154 164 140 166 200 200 205 200 200 149 135 158 120 129 161 190 190 190 202 209 209 209 188 123 118 121 117 120 118 117 112 96 104 Slowest Speed 370 | 160 320 140 200 200 200 240 200 200 200 370 240 120 190 190 232 190 190 209 209 360 209 260 178 121 121 187 191 119 119 122 105 108 Overloaded Moves . | . . . . . . . . . . . . . . . . . . . . . . . . . . . . . . . . . Propulsion Burnouts . | . . . . . . . . . . . . . . . . . . . . . . . . . . . . . . . . . Robots Hopped . | . . . . . . . . . . . . . . . . . . . . . . . . . . . . . . . . . Potential Cave-ins 42 | . . . . . . . . . . . . . . . . . . . . . . . . . 11 . . 1 . 24 . 6 Cave-ins Triggered . | . . . . . . . . . . . . . . . . . . . . . . . . . . . . . . . . . Teleports 5 | . . . . . . . . . . . . . . . . . . . . . . . . . . . . . . 3 2 . Exploration Rate (%) 52 | 4 79 93 74 95 14 75 7 82 31 83 19 83 15 62 59 69 53 17 82 57 66 14 11 96 91 42 72 11 87 34 22 20 Regions Visited 32 Branch Regions 16 Pre-discovered Areas 2 | . . . . . . . . . . . . . . . . 1 . . . . . . . 1 . . . . . . . . Known Exits Taken 15 | . . . 1 . 1 . 1 . 1 . . . . . . . . 1 . . . 1 1 1 1 1 1 1 1 1 1 . Unknown Exits Taken 12 | 1 1 1 . 1 . . . . . . . . 1 1 1 1 1 . 1 1 1 . . . . . . . . . . . Scrap Searched 26 | . . 1 . . . . . . . . . . . 8 7 . 3 . . . . . . 4 3 . . . . . . . Spaces Dug 352 | . 17 9 10 . . 10 . 10 8 32 7 . 14 1 . . 17 25 1 . 6 3 2 . 9 17 15 7 18 83 8 23 Terrain Destroyed 1369 | . 17 9 42 34 . 40 . 23 20 96 48 . 18 8 6 . 17 78 38 . 6 84 92 116 100 61 48 41 57 152 62 56 Melee 52 | . . . . . . 6 . 10 4 20 6 . 5 1 . . . . . . . . . . . . . . . . . . Projectile 478 | . . . . . . . . . . . 6 . 6 7 6 . . 55 38 . 6 11 19 11 26 21 48 19 41 76 41 41 AOE 799 | . 17 9 42 34 . 34 . 13 16 76 36 . 7 . . . 17 23 . . . 73 73 105 74 40 . 22 15 53 20 . Terrain Rammed . | . . . . . . . . . . . . . . . . . . . . . . . . . . . . . . . . . Walls Destroyed . | . . . . . . . . . . . . . . . . . . . . . . . . . . . . . . . . . Machines Disabled . | . . . . . . . . . . . . . . . . . . . . . . . . . . . . . . . . . Actions | -11 -10 -10 -9 -9 -8 -8 -7 -7 -7 -7 -6 -6 -6 -6 -6 -6 -5 -5 -5 -5 -5 -5 -4 -4 -4 -3 -3 -2 -2 -2 -1 -1 --------- Run | Yrd Mat Min Mat Sto Mat Gar Fac Gar Fac Gar Fac Was Fac Low Low Dat Pro Fac Ext Cet Arc Hub Fac Upp Upp Res Tes Res Qua Frg Acc Com Total 29825 | 78 1461 615 1311 1234 137 1013 292 949 1106 1105 2912 90 580 598 467 88 314 978 1132 241 73 463 875 771 842 1601 1152 379 1215 3662 972 1119 Wait 5726 | 2 701 8 143 253 . 156 56 99 117 93 890 . 54 16 29 . . 127 174 36 15 155 151 51 2 181 279 32 291 1078 165 372 Move 20166 | 56 653 581 1001 811 120 686 205 687 893 852 1686 84 458 513 405 79 294 680 745 173 35 241 568 661 757 1268 664 257 775 2064 668 546 Hop . | . . . . . . . . . . . . . . . . . . . . . . . . . . . . . . . . . Pick Up 343 | 7 19 4 23 17 5 9 3 6 13 11 28 1 5 15 3 . 3 14 7 1 . 6 17 7 4 17 16 4 8 47 6 17 Fast Attach 263 | 6 1 . 6 6 . 3 . 3 4 2 26 1 8 . 4 2 1 15 3 7 . 4 24 5 7 29 17 7 12 44 6 10 Attach 167 | . . 2 4 5 3 4 3 2 2 2 26 . 2 2 2 1 2 7 3 . . 10 11 7 9 8 4 4 2 24 7 9 Detach 124 | . . . 1 1 1 1 . . 1 2 7 . 5 2 1 1 1 8 . 1 . 4 9 5 6 9 7 3 4 27 6 11 Swap 532 | . 14 4 16 22 . 38 2 26 20 26 42 2 7 7 5 . 4 8 12 2 2 7 14 5 5 16 43 21 32 92 13 25 Drop 435 | . 7 2 26 20 3 15 . 12 14 11 19 2 7 8 6 2 3 25 7 7 . 4 23 10 11 40 33 5 19 64 7 23 Fire 1625 | 4 65 14 83 83 4 69 1 64 29 54 125 . 21 11 12 3 5 92 53 14 21 32 55 20 41 31 87 46 71 215 94 106 Melee 108 | . . . . 6 . 11 . 18 5 32 18 . 13 3 . . . 1 1 . . . . . . . . . . . . . Ram . | . . . . . . . . . . . . . . . . . . . . . . . . . . . . . . . . . Kick 11 | . . . . . . . . . . . . . . . . . . 1 1 . . . 3 . . 2 2 . 1 1 . . Crush 22 | 3 1 . 8 2 1 2 . 5 . . . . . . . . . . . . . . . . . . . . . . . . Escape Stasis 58 | . . . . . . 18 . 12 . 18 . . . . . . . . 5 . . . . . . . . . . 5 . . Rewire 165 | . . . . . . 1 . 15 . 2 3 . . 21 . . 1 . 121 . . . . . . . . . . 1 . . Trap 72 | . . . . . . . 22 . 8 . 42 . . . . . . . . . . . . . . . . . . . . . Miscellaneous 8 | . . . . 8 . . . . . . . . . . . . . . . . . . . . . . . . . . . . Route ------- -11/Scrapyard -10/Materials (discovered 3 exits: *Mat x2 / [*Min]) -10/Mines -9/Materials (discovered 4 exits: *Mat / *Min x2 / *Sto) -9/Storage -8/Materials -8/Garrison (discovered 3 exits: *Fac x3) -7/Factory -7/Garrison (discovered 3 exits: *Fac x3) -7/Factory (discovered 4 exits: *Fac / Low x2 / Gar) -7/Garrison (discovered 3 exits: *Fac x3) -6/Factory -6/Waste -6/Factory -6/Lower Caves -6/Lower Caves (discovered 2 exits: *Fac / *Dat) -6/Data Miner -5/Proximity Caves -5/Factory (discovered 4 exits: Upp x2 / *Ext x2) -5/Extension (discovered 2 exits: *Fac / *Cet) -5/Cetus (discovered 2 exits: *Fac / [*Arc]) -5/Archives -5/Hub_04(d) (discovered 4 exits: *Fac x4) -4/Factory (discovered 2 exits: *Upp x2) -4/Upper Caves -4/Upper Caves (discovered 2 exits: *Res / *War) -3/Research (discovered 4 exits: *Res x3 / *Tes) -3/Testing -2/Research -2/Quarantine (discovered 3 exits: *Acc / [*Sec] / *Frg) -2/Protoforge -1/Access -1/Command (discovered 2 exits: Sur x2) By MAIN.C's Side History --------- Turn | Location | Event 15 | -11/Scrapyard | Discovered new exit (range 14) 123 | -11/Scrapyard | Entered Materials 307 | -10/Materials | Build established: Mutant 473 | -10/Materials | Discovered new exit (range 10) 1482 | -10/Materials | Discovered new exit (range 11) 1800 | -10/Materials | Discovered new exit (range 3) 2138 | -10/Materials | Entered Mines 2642 | -10/Mines | Learned Materials trap positions 2926 | -10/Mines | Discovered new exit (range 15) 3013 | -10/Mines | Entered Materials 3013 | -9/Materials | Evolved 2 slots: Propulsion x1, Utility x1 3014 | -9/Materials | Loaded intel: 18 trap records 3096 | -9/Materials | Identified exit to Mines 3096 | -9/Materials | Identified exit to Storage 3352 | -9/Materials | Build established: Scavenger-Mutant 4268 | -9/Materials | Discovered new exit (range 11) 4661 | -9/Materials | Central database locked down 5056 | -9/Materials | Repaired Imp. Heat Sink 5146 | -9/Materials | Entered Storage 5577 | -9/Storage | Garrison activated, responded to threat 5756 | -9/Storage | Found Prototype Launcher 5756 | -9/Storage | Identified Scatter Rocket Array 5887 | -9/Storage | Repaired Imp. Medium Laser 5914 | -9/Storage | Repaired Lgt. Treads+ 5941 | -9/Storage | Repaired Lgt. Treads+ 5993 | -9/Storage | Repaired Imp. Medium Laser 6688 | -9/Storage | Discovered new exit (range 12) 6881 | -9/Storage | Repaired Lgt. Treads+ 6908 | -9/Storage | Repaired Lgt. Treads+ 7366 | -9/Storage | Entered Materials 7366 | -8/Materials | Evolved 2 slots: Utility x1, Weapon x1 7467 | -8/Materials | Central database locked down 7624 | -8/Materials | Identified exit to Garrison 7630 | -8/Materials | Entered Garrison 7649 | -8/Garrison | Build established: Scavenger-Tank 7679 | -8/Garrison | Triggered checkpoint 7999 | -8/Garrison | Triggered checkpoint 8006 | -8/Garrison | Triggered checkpoint 8180 | -8/Garrison | Triggered checkpoint 8206 | -8/Garrison | Discovered new exit (range 14) 8498 | -8/Garrison | Triggered checkpoint 8583 | -8/Garrison | Discovered new exit (range 13) 8591 | -8/Garrison | Learned Factory security intel 8642 | -8/Garrison | Triggered checkpoint 8697 | -8/Garrison | Rescued a captive Derelict 8708 | -8/Garrison | Garrison Relay disabled 8777 | -8/Garrison | Installed Relay Interface Framework 8930 | -8/Garrison | Triggered checkpoint 9119 | -8/Garrison | Discovered new exit (range 24) 9119 | -8/Garrison | Discovered new exit (range 48) 9119 | -8/Garrison | Discovered new exit (range 37) 9133 | -8/Garrison | Triggered checkpoint 9528 | -8/Garrison | Entered Factory 9528 | -7/Factory | Accompanied by 1 ally 9528 | -7/Factory | Evolved 2 slots: Utility x2 9561 | -7/Factory | Repaired Lgt. Treads+ 9846 | -7/Factory | Central database locked down 10019 | -7/Factory | Identified exit to Garrison 10029 | -7/Factory | Entered Garrison 10029 | -7/Garrison | Accompanied by 1 ally 10031 | -7/Garrison | Triggered checkpoint 10352 | -7/Garrison | Expanded RIF knowledge: Program Shield 10382 | -7/Garrison | Garrison Relay disabled 10421 | -7/Garrison | Rescued a captive Derelict 10421 | -7/Garrison | Rescued a captive Derelict 10880 | -7/Garrison | Lost 4 allies 10951 | -7/Garrison | Triggered checkpoint 11029 | -7/Garrison | Triggered checkpoint 11118 | -7/Garrison | Garrison Relay disabled 11159 | -7/Garrison | Discovered new exit (range 13) 11436 | -7/Garrison | Expanded RIF knowledge: Hotswap 11451 | -7/Garrison | Triggered checkpoint 11567 | -7/Garrison | Garrison Relay disabled 11621 | -7/Garrison | Discovered new exit (range 12) 11764 | -7/Garrison | Build established: Bothacker-Tank 11821 | -7/Garrison | Discovered new exit (range 13) 11848 | -7/Garrison | Entered Factory 11848 | -7/Factory | Accompanied by 1 ally 12215 | -7/Factory | Build established: Bothacker-Gunner 12893 | -7/Factory | Discovered new exit (range 15) 13304 | -7/Factory | Identified exit to Lower Caves 13363 | -7/Factory | Repaired Arm. Huge Wheel+ 13467 | -7/Factory | Identified exit to Garrison 13475 | -7/Factory | Entered Garrison 13545 | -7/Garrison | Triggered checkpoint 13574 | -7/Garrison | Garrison Relay disabled 13870 | -7/Garrison | Triggered checkpoint 13872 | -7/Garrison | Triggered checkpoint 13927 | -7/Garrison | Triggered checkpoint 13998 | -7/Garrison | Triggered checkpoint 14175 | -7/Garrison | Triggered checkpoint 14236 | -7/Garrison | Discovered new exit (range 3) 14321 | -7/Garrison | Garrison Relay disabled 14510 | -7/Garrison | Triggered checkpoint 14556 | -7/Garrison | Garrison Relay disabled 14605 | -7/Garrison | Discovered new exit (range 11) 14625 | -7/Garrison | Expanded RIF knowledge: Signal Jamming 14749 | -7/Garrison | Discovered new exit (range 16) 14839 | -7/Garrison | Triggered checkpoint 14907 | -7/Garrison | Discovered new exit (range 82) 14907 | -7/Garrison | Discovered new exit (range 61) 14907 | -7/Garrison | Discovered new exit (range 26) 15025 | -7/Garrison | Entered Factory 15025 | -6/Factory | Accompanied by 1 ally 15025 | -6/Factory | Evolved 2 slots: Power x1, Utility x1 15243 | -6/Factory | Unchained authorized (CL-0N3) 15341 | -6/Factory | P-60 Hacker assimilated hostile G-50 Soldier 15523 | -6/Factory | Discovered new exit (range 8) 15614 | -6/Factory | K-01 Serf reconstituted as D-83 Annihilator 15627 | -6/Factory | D-83 Annihilator reconstituted as CL-0N3 15927 | -6/Factory | T-07 Excavator reconstituted as Infiltrator 15934 | -6/Factory | Infiltrator reconstituted as CL-0N3 16268 | -6/Factory | U-05 Engineer reconstituted as Executioner 16268 | -6/Factory | Spotted Executioner 16272 | -6/Factory | Allies destroyed Executioner 16272 | -6/Factory | Executioner reconstituted as CL-0N3 16523 | -6/Factory | R-10 Processor reconstituted as X-82 Rainmaker 16529 | -6/Factory | X-82 Rainmaker reconstituted as CL-0N3 16788 | -6/Factory | X-82 Rainmaker reconstituted as CL-0N3 17154 | -6/Factory | R-10 Processor reconstituted as Cetus Guard 17154 | -6/Factory | Spotted Cetus Guard 17187 | -6/Factory | Cetus Guard reconstituted as CL-0N3 17218 | -6/Factory | Lost 3 parts (2n1w) 17475 | -6/Factory | First assault squad dispatched 17506 | -6/Factory | R-10 Processor reconstituted as X-87 Electro 17545 | -6/Factory | X-87 Electro reconstituted as CL-0N3 17825 | -6/Factory | K-01 Serf reconstituted as Striker 17829 | -6/Factory | Spotted Striker 17848 | -6/Factory | Destroyed Striker 17848 | -6/Factory | Striker reconstituted as CL-0N3 17985 | -6/Factory | Found Hvy. Reflective Plating 17992 | -6/Factory | Found Hvy. Reflective Plating 18167 | -6/Factory | Build established: Scavenger-Gunner 18405 | -6/Factory | P-60 Hacker reconstituted as Infiltrator 18463 | -6/Factory | Infiltrator reconstituted as CL-0N3 18481 | -6/Factory | Lost 6 parts (1p3n1u1w) 18934 | -6/Factory | R-10 Processor reconstituted as Martyr 18955 | -6/Factory | Martyr reconstituted as CL-0N3 18957 | -6/Factory | Destroyed CL-0N3 18980 | -6/Factory | Core integrity fell below 50% 19008 | -6/Factory | Extracted schematics, analyses from CL-0N3's data core 19018 | -6/Factory | Found ID Mask 19020 | -6/Factory | Destroyed 7 combat bots 19030 | -6/Factory | Lost 11 parts (3p3n2u3w) 19170 | -6/Factory | Found Hvy. Reflective Plating 19210 | -6/Factory | Manually triggered Chute Trap 19210 | -6/Factory | Sucked down chute 19210 | -6/Factory | Entered Waste 19225 | -6/Waste | EMP discharged 19225 | -6/Waste | System corruption reached 10% 19243 | -6/Waste | Spotted C-40 Crusher 19244 | -6/Waste | Spotted C-40 Crusher 19257 | -6/Waste | Spotted C-40 Crusher 19268 | -6/Waste | Crushed by Compactor (0 parts destroyed, 1 dropped) 19288 | -6/Waste | Spotted C-40 Crusher 19305 | -6/Waste | Discovered new exit (range 12) 19305 | -6/Waste | Spotted C-40 Crusher 19318 | -6/Waste | Entered Factory 19817 | -6/Factory | Found Prototype Processor 19817 | -6/Factory | Identified Exp. Targeting Computer 20014 | -6/Factory | Discovered new exit (range 10) 20085 | -6/Factory | Entered Lower Caves 20421 | -6/Lower Caves | Build established: Scavenger-Mutant 20493 | -6/Lower Caves | Found DCF Scrap (15 items) 20531 | -6/Lower Caves | Attacked by a faux Warlord 20784 | -6/Lower Caves | Entered a destroyed Warlord outpost 20862 | -6/Lower Caves | Encountered a Warlord checkpoint 20947 | -6/Lower Caves | Discovered new exit (range 10) 20949 | -6/Lower Caves | Build established: Derelict-Mutant 21022 | -6/Lower Caves | Entered another Lower Caves area 21022 | -6/Lower Caves | Accompanied by 2 allies 21156 | -6/Lower Caves | Found Imp. Powered Armor 21282 | -6/Lower Caves | Discovered new exit (range 15) 21414 | -6/Lower Caves | Build established: Mutant 21569 | -6/Lower Caves | Learned Factory terminal intel 21728 | -6/Lower Caves | Discovered new exit (range 9) 21882 | -6/Lower Caves | Entered Data Miner 21882 | -6/Data Miner | Discovered new exit (range 6) 21920 | -6/Data Miner | Met Data Miner 21965 | -6/Data Miner | Learned location of Section 7 (-2) 21965 | -6/Data Miner | Acquired the access code to Warlord's prototype stash 21992 | -6/Data Miner | Received God Mode back door access code from Data Miner 22043 | -6/Data Miner | Entered Proximity Caves 22046 | -5/Proximity Caves | Spotter reported a threat 22415 | -5/Proximity Caves | Build established: Derelict-Gunner 22542 | -5/Proximity Caves | Escorted by Enhanced Grunt 22565 | -5/Proximity Caves | Attracted the attention of an 0b10 outpost 22572 | -5/Proximity Caves | Discovered new exit (range 11) 22584 | -5/Proximity Caves | Learned location of 1 exit from Proximity Caves 22626 | -5/Proximity Caves | Entered Factory 22626 | -5/Factory | Accompanied by 2 allies 22626 | -5/Factory | Evolved 2 slots: Propulsion x2 22627 | -5/Factory | Loaded intel: 28 terminal locations 22919 | -5/Factory | Build established: Scavenger-Gunner 23107 | -5/Factory | Repaired Med. Armored Exoskeleton 23138 | -5/Factory | Identified exit to Upper Caves 23138 | -5/Factory | Identified exit to Extension 23431 | -5/Factory | Fabricated Imp. Matter Compressor? 23590 | -5/Factory | Build established: Gunner 24028 | -5/Factory | Spotted B-75 Beast 24047 | -5/Factory | Destroyed B-75 Beast 24416 | -5/Factory | Entered Extension 24514 | -5/Extension | Rescued a captive Derelict 24683 | -5/Extension | Build established: Scavenger-Gunner 24895 | -5/Extension | Spotted B-75 Beast 24931 | -5/Extension | Destroyed B-75 Beast 25339 | -5/Extension | Rescued a captive Derelict 25434 | -5/Extension | Rescued a captive Derelict 25457 | -5/Extension | Rescued a captive Derelict 25476 | -5/Extension | Rescued A7 25614 | -5/Extension | Build established: Commander-Gunner 25773 | -5/Extension | Spotted B-75 Beast 25785 | -5/Extension | Allies destroyed B-75 Beast 25916 | -5/Extension | First assault squad dispatched 26135 | -5/Extension | Rescued a captive Derelict 26146 | -5/Extension | Lost 11 allies 26171 | -5/Extension | Rescued a captive Derelict 26171 | -5/Extension | Rescued a captive Derelict 26273 | -5/Extension | Repaired Med. Armored Exoskeleton 26329 | -5/Extension | Rescued a captive Derelict 26330 | -5/Extension | Rescued a captive Derelict 26373 | -5/Extension | Rescued a captive Derelict 26374 | -5/Extension | Rescued a captive Derelict 26422 | -5/Extension | Build established: Scavenger-Gunner 26431 | -5/Extension | Discovered new exit (range 10) 26433 | -5/Extension | Discovered new exit (range 6) 26479 | -5/Extension | Entered Cetus 26479 | -5/Cetus | Accompanied by 10 allies (A7) 26484 | -5/Cetus | Acquired a Cetus Manufacturing Module code from A7 26506 | -5/Cetus | Spotted Cetus Guard 26506 | -5/Cetus | Spotted Cetus Guard 26506 | -5/Cetus | Allies destroyed Cetus Guard 26509 | -5/Cetus | Spotted Cetus Guard 26510 | -5/Cetus | Spotted Cetus Guard 26514 | -5/Cetus | Destroyed Cetus Guard 26517 | -5/Cetus | Allies destroyed Cetus Guard 26521 | -5/Cetus | Allies destroyed Cetus Guard 26634 | -5/Cetus | Started Cetus Manufacturing Module 26659 | -5/Cetus | Manufactured an Enhanced Grunt 26684 | -5/Cetus | Manufactured an Enhanced Grunt 26695 | -5/Cetus | Discovered new exit (range 16) 26709 | -5/Cetus | Manufactured an Enhanced Grunt 26734 | -5/Cetus | Manufactured an Enhanced Grunt 26738 | -5/Cetus | Spotted Cetus Guard 26739 | -5/Cetus | Spotted Cetus Guard 26743 | -5/Cetus | Spotted Cetus Guard 26744 | -5/Cetus | Destroyed Cetus Guard 26746 | -5/Cetus | Allies destroyed Cetus Guard 26746 | -5/Cetus | Spotted Cetus Guard 26747 | -5/Cetus | Allies destroyed Cetus Guard 26752 | -5/Cetus | Destroyed Cetus Guard 26759 | -5/Cetus | Manufactured an Enhanced Grunt 26764 | -5/Cetus | Discovered new exit (range 16) 26776 | -5/Cetus | Met Revision 17 26924 | -5/Cetus | Entered Archives 26924 | -5/Archives | Accompanied by 12 allies (A7) 26995 | -5/Archives | Discovered new exit (range 13) 26999 | -5/Archives | Met Zhirov 27005 | -5/Archives | Reinforcements dispatched to Archives 27050 | -5/Archives | Reinforcements dispatched to Archives 27055 | -5/Archives | Entered Hub_04(d) 27055 | -5/Hub_04(d) | Accompanied by 5 allies 27210 | -5/Hub_04(d) | Identified exit to Factory 27534 | -5/Hub_04(d) | Network Hub disabled 27542 | -5/Hub_04(d) | Spotted Lightning 27543 | -5/Hub_04(d) | Spotted Lightning 27550 | -5/Hub_04(d) | Spotted Lightning 27557 | -5/Hub_04(d) | System corruption reached 10% 27575 | -5/Hub_04(d) | Destroyed Lightning 27576 | -5/Hub_04(d) | Lost 4 allies 27587 | -5/Hub_04(d) | Destroyed Lightning 27592 | -5/Hub_04(d) | Destroyed Lightning 27620 | -5/Hub_04(d) | Lost 6 parts (1p1n3u1w) 27777 | -5/Hub_04(d) | System corruption reached 30% 27778 | -5/Hub_04(d) | Entered Factory 27778 | -4/Factory | Evolved 2 slots: Propulsion x1, Utility x1 28010 | -4/Factory | Identified exit to Upper Caves 28093 | -4/Factory | Fabricated Linear Accelerator? 28278 | -4/Factory | First assault squad dispatched 28296 | -4/Factory | Incoming assault squad redirected 28300 | -4/Factory | Incoming assault squad redirected 28300 | -4/Factory | Central database locked down 28345 | -4/Factory | Incoming investigation squad redirected 28446 | -4/Factory | Repaired Med. Armored Exoskeleton+ 28540 | -4/Factory | Repaired Enh. Flexi-carbon Leg? 28603 | -4/Factory | Unchained authorized (6S-H0T) 28699 | -4/Factory | Repaired Enh. Flexi-carbon Leg? 28823 | -4/Factory | Repaired Centrium Medium Armor Plating 28874 | -4/Factory | Entered Upper Caves 28876 | -4/Upper Caves | Attracted the attention of an 0b10 checkpoint 28904 | -4/Upper Caves | Destroyed 7 combat bots 29054 | -4/Upper Caves | Build established: Scavenger-Tank 29114 | -4/Upper Caves | Learned Extension trap positions 29114 | -4/Upper Caves | Learned Extension stockpile data 29431 | -4/Upper Caves | Build established: Scavenger-Gunner 29613 | -4/Upper Caves | Learned location of Armory (-3) 29685 | -4/Upper Caves | Discovered new exit (range 7) 29798 | -4/Upper Caves | Identified exit to Upper Caves 29800 | -4/Upper Caves | Entered another Upper Caves area 29876 | -4/Upper Caves | Found Prototype Special Weapon 29876 | -4/Upper Caves | Identified Mak. Laser Shovel 29913 | -4/Upper Caves | Discovered new exit (range 16) 30081 | -4/Upper Caves | Encountered an infested base 30119 | -4/Upper Caves | Destroyed 7 combat bots 30303 | -4/Upper Caves | Attracted the attention of an 0b10 checkpoint 30322 | -4/Upper Caves | Discovered new exit (range 14) 30333 | -4/Upper Caves | Learned Research stockpile data 30348 | -4/Upper Caves | Identified exit to Warlord 30467 | -4/Upper Caves | Learned Research emergency access door positions 30850 | -4/Upper Caves | Identified exit to Research 30852 | -4/Upper Caves | Entered Research 30852 | -3/Research | Evolved 2 slots: Power x1, Utility x1 31052 | -3/Research | Revision forces began assault on 0b10 31163 | -3/Research | Build established: Scavenger-Skirmisher 31187 | -3/Research | Met up with Revision 17++ 31281 | -3/Research | Repaired Med. Armored Exoskeleton+ 31350 | -3/Research | Repaired Linear Accelerator 31413 | -3/Research | Discovered new exit (range 24) 31452 | -3/Research | Identified exit to Research 31536 | -3/Research | Found Gamma Bomb Array 31538 | -3/Research | Found Gamma Bomb Array 31552 | -3/Research | Research terminal network offline 31556 | -3/Research | Discovered exit to Research (range 15) 31898 | -3/Research | Spotted B-86 Titan 32128 | -3/Research | Discovered exit to Research (range 16) 32259 | -3/Research | Fabricated Y-72 Warden (x2) 32284 | -3/Research | Found Fusion Bomb Launcher 32555 | -3/Research | Build established: Skirmisher 32556 | -3/Research | Spotted Striker 32562 | -3/Research | Spotted Striker 32673 | -3/Research | Discovered new exit (range 16) 32700 | -3/Research | Identified exit to Testing 32705 | -3/Research | Entered Testing 32705 | -3/Testing | Accompanied by 2 allies 32768 | -3/Testing | Unchained authorized (6S-H0T) 32972 | -3/Testing | Found 6S-H0T's Six Shooter 33020 | -3/Testing | Destroyed 6S-H0T 33025 | -3/Testing | Found 6S-H0T's SS Cartridge 33034 | -3/Testing | Found 6S-H0T's SS Cartridge 33116 | -3/Testing | Spotted PP-98FK19L5A6 33165 | -3/Testing | Found Prototype Processor 33181 | -3/Testing | Identified Exp. Melee Analysis Suite 33192 | -3/Testing | Found Prototype Device 33247 | -3/Testing | Identified Exp. Shield Generator 33327 | -3/Testing | Spotted PX-6KPSQE8LQ0 33329 | -3/Testing | Destroyed PX-6KPSQE8LQ0 33401 | -3/Testing | Found Prototype Device 33401 | -3/Testing | Identified 2N-1CE's Frost Array 33420 | -3/Testing | Found Exp. Targeting Computer 33469 | -3/Testing | Discovered exit to Research (range 14) 33590 | -3/Testing | Found Prototype Energy Gun 33590 | -3/Testing | Identified Tachyon Dispersion Ray 33615 | -3/Testing | Found Prototype Energy Cannon 33615 | -3/Testing | Identified Null Cannon 33878 | -3/Testing | Found Prototype Energy Cannon 33978 | -3/Testing | Identified Imp. Potential Cannon 33980 | -3/Testing | Found Prototype Ballistic Gun 33980 | -3/Testing | Identified Hyp. Multirail 34149 | -3/Testing | Entered Research 34149 | -2/Research | Evolved 2 slots: Propulsion x1, Utility x1 34338 | -2/Research | Destroyed 9 combat bots 34542 | -2/Research | Discovered new exit (range 24) 34658 | -2/Research | Spotted B-90 Cyclops 34662 | -2/Research | Identified exit to Quarantine 34663 | -2/Research | Entered Quarantine 34735 | -2/Quarantine | Cryocooling Duct disabled 34750 | -2/Quarantine | Ambient heat levels rising (+20) 34750 | -2/Quarantine | Non-combat units ordered to evacuate 34826 | -2/Quarantine | Build established: Scavenger-Skirmisher 35116 | -2/Quarantine | P-80 Master assimilated allied Enforcer 9a 35236 | -2/Quarantine | Discovered new exit (range 19) 35429 | -2/Quarantine | Found Alien Artifact 35431 | -2/Quarantine | Identified Subatomic Replicator 35431 | -2/Quarantine | Used Subatomic Replicator to replicate Hyp. Multirail 35853 | -2/Quarantine | Spotted Fortress 35864 | -2/Quarantine | Destroyed Fortress 35913 | -2/Quarantine | First assault squad dispatched 35948 | -2/Quarantine | Discovered new exit (range 16) 35959 | -2/Quarantine | Discovered new exit (range 5) 36055 | -2/Quarantine | Identified exit to Protoforge 36110 | -2/Quarantine | Entered Protoforge 36158 | -2/Protoforge | Build established: Skirmisher 36298 | -2/Protoforge | Central database locked down 36326 | -2/Protoforge | Superfortress began startup sequence 36439 | -2/Protoforge | Discovered new exit (range 19) 36488 | -2/Protoforge | Identified exit to Access 36714 | -2/Protoforge | Destroyed 7 combat bots 36754 | -2/Protoforge | Spotted Hotshot 36754 | -2/Protoforge | Spotted Hotshot 36754 | -2/Protoforge | Spotted Hotshot 36754 | -2/Protoforge | Spotted Hotshot 36755 | -2/Protoforge | Spotted Hotshot 36829 | -2/Protoforge | Destroyed Hotshot 36834 | -2/Protoforge | Destroyed Hotshot 36837 | -2/Protoforge | Destroyed Hotshot 36840 | -2/Protoforge | Destroyed Hotshot 36846 | -2/Protoforge | Destroyed Hotshot 36858 | -2/Protoforge | Lost 4 parts (1p2u1w) 36867 | -2/Protoforge | Destroyed 9 combat bots 37120 | -2/Protoforge | Found Prototype Device 37120 | -2/Protoforge | Identified Cep. Recoil Nullifier 37125 | -2/Protoforge | Found Cep. Recoil Nullifier 37138 | -2/Protoforge | Found Prototype Storage 37138 | -2/Protoforge | Identified Cep. Chromion Battery 37154 | -2/Protoforge | Found Prototype Ballistic Gun 37154 | -2/Protoforge | Identified Cep. XC Strikerail 37172 | -2/Protoforge | Found Cep. XC Strikerail 37176 | -2/Protoforge | Found Cep. XC Strikerail 37178 | -2/Protoforge | Found Cep. XC Strikerail 37201 | -2/Protoforge | Additional patrols dispatched to research labs 37212 | -2/Protoforge | Spotted Decapitator 37212 | -2/Protoforge | Spotted Decapitator 37212 | -2/Protoforge | Spotted Immortal 37212 | -2/Protoforge | Spotted Immortal 37212 | -2/Protoforge | Spotted Decapitator 37212 | -2/Protoforge | Spotted Immortal 37214 | -2/Protoforge | Spotted Decapitator 37217 | -2/Protoforge | Destroyed Decapitator 37217 | -2/Protoforge | Destroyed Decapitator 37224 | -2/Protoforge | Destroyed Decapitator 37235 | -2/Protoforge | Destroyed Decapitator 37242 | -2/Protoforge | Destroyed Immortal 37269 | -2/Protoforge | Lost 4 parts (2n2u) 37300 | -2/Protoforge | Destroyed Immortal 37309 | -2/Protoforge | Destroyed Immortal 37312 | -2/Protoforge | Found Prototype Protection 37312 | -2/Protoforge | Identified Cep. Core Shell 37532 | -2/Protoforge | P-80 Master assimilated allied Warden 9b 37580 | -2/Protoforge | Build established: Scavenger-Tank 37659 | -2/Protoforge | Forge Plexus network access discovered 37699 | -2/Protoforge | Found Exp. System Purifier 37715 | -2/Protoforge | Spotted Immortal 37791 | -2/Protoforge | Spotted Immortal 37795 | -2/Protoforge | Destroyed Immortal 37816 | -2/Protoforge | Destroyed Immortal 37819 | -2/Protoforge | Spotted Decapitator 37819 | -2/Protoforge | Spotted Decapitator 37819 | -2/Protoforge | Spotted Decapitator 37819 | -2/Protoforge | Spotted Decapitator 37826 | -2/Protoforge | Destroyed Decapitator 37826 | -2/Protoforge | Destroyed Decapitator 37838 | -2/Protoforge | Destroyed Decapitator 37838 | -2/Protoforge | Destroyed Decapitator 37860 | -2/Protoforge | First assault squad dispatched 37879 | -2/Protoforge | Incoming assault squad redirected 38146 | -2/Protoforge | ID Mask engaged 38150 | -2/Protoforge | Spotted V566-b 38155 | -2/Protoforge | Found Cep. Tiamat Rocket Array 38174 | -2/Protoforge | Found Cep. Smart ZDS 38280 | -2/Protoforge | Spotted Decapitator 38280 | -2/Protoforge | Spotted Decapitator 38280 | -2/Protoforge | Spotted V567-i 38280 | -2/Protoforge | Spotted V552-e 38287 | -2/Protoforge | ID Mask no longer valid 38323 | -2/Protoforge | Destroyed Decapitator 38323 | -2/Protoforge | Destroyed Decapitator 38323 | -2/Protoforge | Destroyed Decapitator 38376 | -2/Protoforge | Destroyed V567-i 38410 | -2/Protoforge | Destroyed V552-e 38423 | -2/Protoforge | Lost 3 parts (1n2u) 38448 | -2/Protoforge | Found Cep. NT7 Matterbank 38452 | -2/Protoforge | Found Cep. Matter Streamer 38469 | -2/Protoforge | Found Cep. Antigrav Storage Unit 38473 | -2/Protoforge | Found Cep. NT7 Matterbank 38475 | -2/Protoforge | Found Cep. Chromion Battery 38640 | -2/Protoforge | Incoming assault squad redirected 38786 | -2/Protoforge | Found Cep. Lightning Penetrator 38788 | -2/Protoforge | Found Cep. XC Strikerail 38791 | -2/Protoforge | Found Cep. XC Strikerail 38793 | -2/Protoforge | Found Cep. XC Strikerail 38796 | -2/Protoforge | Found Faulty Cep. Heavy Railcannon 38803 | -2/Protoforge | Found Cep. Helical Railcannon 38805 | -2/Protoforge | Found Faulty Cep. Helical Railcannon 38814 | -2/Protoforge | Found Cep. Helical Railcannon 38818 | -2/Protoforge | Found Cep. Plasma Driver 38850 | -2/Protoforge | Found Crosscalibrator 38965 | -2/Protoforge | Build established: Scavenger-Gunner 39138 | -2/Protoforge | Incoming assault squad redirected 39279 | -2/Protoforge | Core integrity fell below 50% 39361 | -2/Protoforge | Found Cep. RG22 Armor 39365 | -2/Protoforge | Found Cep. Core Shell 39368 | -2/Protoforge | Found Cep. RG22 Armor 39376 | -2/Protoforge | Incoming assault squad redirected 39387 | -2/Protoforge | Found Cep. Hardlight Director 39414 | -2/Protoforge | Found Cep. Energy Mantle 39539 | -2/Protoforge | Found Cep. Nanofilaments [Tensile] 39539 | -2/Protoforge | Installed Cep. Nanofilaments [Tensile], 3 resistances modified: KI +20%, TH -10%, I +20% 39569 | -2/Protoforge | Found Cep. Navigation Harness 39578 | -2/Protoforge | Found Transdimensional Reconstructor 39712 | -2/Protoforge | Spotted Decapitator 39712 | -2/Protoforge | Spotted Decapitator 39715 | -2/Protoforge | Destroyed Decapitator 39716 | -2/Protoforge | Spotted Decapitator 39723 | -2/Protoforge | Destroyed Decapitator 39763 | -2/Protoforge | Found Cep. Zero-point Core 39775 | -2/Protoforge | Found Cep. Zero-point Core 40040 | -2/Protoforge | Found Exp. System Purifier 40065 | -2/Protoforge | Found Exp. System Purifier 40417 | -2/Protoforge | Entered Access 40417 | -1/Access | Evolved 2 slots: Utility x2 40608 | -1/Access | Unchained authorized (QV-33N) 40917 | -1/Access | First assault squad dispatched 41073 | -1/Access | Garrison activated, responded to threat 41158 | -1/Access | Destroyed 21 combat bots 41364 | -1/Access | Discovered new exit (range 8) 41372 | -1/Access | Identified exit to Command 41534 | -1/Access | Entered Command 41822 | -1/Command | Spotted Combat Programmer 41892 | -1/Command | Met MAIN.C 41897 | -1/Command | 0b10 Conduit disabled 41954 | -1/Command | Destroyed MAIN.C Shell 41957 | -1/Command | MAIN.C activated Command garrisons 41957 | -1/Command | Surrendered to MAIN.C 41957 | -1/Command | Loaded intel: 63 machine locations 41957 | -1/Command | Loaded intel: 111 trap records 41957 | -1/Command | Identified exit to Surface 41957 | -1/Command | Discovered exit to Surface (range 76) 41957 | -1/Command | Discovered exit to Surface (range 48) 42003 | -1/Command | Found Prototype Processor 42003 | -1/Command | Identified Exp. Core Analyzer 42007 | -1/Command | Found Prototype Reactor 42007 | -1/Command | Identified Zero-point Reactor 42010 | -1/Command | Found Prototype Reactor 42027 | -1/Command | Found Prototype Ballistic Cannon 42027 | -1/Command | Identified Perforator 42308 | -1/Command | Build established: Gunner 42406 | -1/Command | MAIN.C activated Command garrisons 42445 | -1/Command | Unknown forces attacked Command 42445 | -1/Command | Spotted EQ-001 42445 | -1/Command | Spotted EQ-003 42445 | -1/Command | Spotted EQ-006 42445 | -1/Command | Spotted EQ-004 42445 | -1/Command | Spotted EQ-005 42445 | -1/Command | Spotted EQ-000 42449 | -1/Command | Spotted EQ-002 42458 | -1/Command | Destroyed EQ-000 42459 | -1/Command | Phase Generator disabled 42535 | -1/Command | Spotted EQ-021 42535 | -1/Command | Spotted EQ-023 42535 | -1/Command | Spotted EQ-022 42535 | -1/Command | Spotted EQ-019 42535 | -1/Command | Spotted EQ-020 42535 | -1/Command | Spotted EQ-018 42544 | -1/Command | Destroyed EQ-022 42547 | -1/Command | Spotted EQ-034 42552 | -1/Command | Destroyed EQ-023 42555 | -1/Command | Destroyed EQ-021 42561 | -1/Command | Destroyed EQ-034 42565 | -1/Command | Destroyed EQ-020 42636 | -1/Command | Spotted EQ-038 42636 | -1/Command | Spotted EQ-041 42636 | -1/Command | Spotted EQ-039 42636 | -1/Command | Spotted EQ-042 42636 | -1/Command | Spotted EQ-040 42662 | -1/Command | Destroyed EQ-038 42666 | -1/Command | Spotted EQ-016 42673 | -1/Command | Spotted EQ-027 42689 | -1/Command | Spotted EQ-008 42695 | -1/Command | Spotted EQ-045 42705 | -1/Command | Spotted EQ-044 42713 | -1/Command | Destroyed EQ-044 42718 | -1/Command | Spotted EQ-058 42752 | -1/Command | Spotted EQ-047 42765 | -1/Command | Spotted EQ-060 42765 | -1/Command | Spotted EQ-081 42765 | -1/Command | Spotted EQ-061 42768 | -1/Command | Destroyed EQ-081 42793 | -1/Command | Spotted EQ-052 42799 | -1/Command | Spotted EQ-029 42800 | -1/Command | Spotted EQ-033 42801 | -1/Command | Destroyed EQ-052 42802 | -1/Command | Spotted EQ-014 42815 | -1/Command | Destroyed EQ-029 42821 | -1/Command | Destroyed EQ-033 42842 | -1/Command | Spotted EQ-031 42851 | -1/Command | Spotted EQ-072 42861 | -1/Command | Spotted EQ-079 42865 | -1/Command | Spotted EQ-094 42866 | -1/Command | Spotted EQ-084 42868 | -1/Command | Spotted EQ-024 42873 | -1/Command | All MAIN.C guards destroyed 42877 | -1/Command | Destroyed EQ-024 42878 | -1/Command | Attackers retreated from Command 42880 | *** | Fortifying 0b10! Last Messages --------------- 42873_ M Guard system terminally corrupted. 42874_ HV Slug penetrates EQ-024. 42874_ HV Slug penetrates Reinforced Barrier. 42874_ Railslug penetrates EQ-024. 42874_ Railslug penetrates Reinforced Barrier. 42875_ Slug penetrates MAIN.C. 42877_ Plasma Slug penetrates EQ-024. 42877_ EQ-024 destroyed. 42877_ Railslug penetrates Reinforced Barrier. 42878_ ALERT: Enemy forces retreating. 42880_ 6 KRP#7YZNM7BKFC/=:D MAIN.C: I admit your assistance was pivotal here. It looks like I was right to trust you. This attack appears to have been designed to merely test our defenses, although it was nearly effective enough to force me to take the conflict to the next level. Investigating the origins of these bots should be one of our highest priorities... [Achievement: 75k Club] [Achievement: Stronghold] Map ----- +----------------------------------------------------+ | ######### ##????????????????????????#?#?#????# | | ?????#### ##????????????????????????#?#?#????# | | ?????#] ] #????????????????????????#?#?#????### | | ?????#[] = #????????????????????????#?#?#??????# | | ?????#!!! !==#????????????????????????#?#?#??????# | | ?????#! ! [= #????????????????????????#?#?#??????# | | ????##"#######????????????????????????#?#?#??????# | | #####"##??????????????????????????????#?#?#??????# | | ##???????????????????????????????#?#?#??????? | | #????????????????????????????????#?#?#??????? | | #????????????????????????????????#?#?#??????? | | #????????????????????????????????#?#?#??????? | | #????????????????????????????????#?#?#??????? | | #????????????????????????????????#?#?#??????? | | #????????????????????????????????#?#?#??????? | | #????????????????????????????????#?#?#??????? | | % #????????????????????????????????#?#?#??????? | | #############################????#?#?#??????? | | "##?????????????????????????#????#?#?#??????? | | # #########################?#????#?#?#??????? | | ##"## % ! ################### | | ###%# ! #?#???????????????# | | #?#%;%% %% % ################### | | #?###= * % % *!%% | | #?#?#" ] % % % | | ##+###?#?#""! % @ % % | | # !#?#?# " % % ################### | | # #?#?# % #?#???????????????# | | + #?#?# ! [ = ################### | | # #?#?# = M ! ! % #?#????#?#?#??????# | | # #?#?#% ! * % #?#????#?#?#??????# | | # = #?#?# =%% #?#????#?#?#??????# | | ### ##?#?#=]!= * #?#????#?#?#??????# | | ## ?#?# ![= [ #?#????#?#?#??????# | | %#### = = !%! #?#????#?#?#??????# | | ! = = #?#????#?#?#??????# | | =* % = #?#????#?#?#??????# | | ! ! * %/ #?#????#?#?#??????# | | ! #### %"% % %*#?#????#?#?#??????? | | "# ###?# % % % #?#????#?#?#??????? | | % ##?#?#%% % " %% %% #?#????#?#?#??????? | | #??#?#######################?#????#?#?#??????? | | " #??#?????????????????????????#????#?#?#??????? | | "" #??###########################????#?#?#??????? | | "" #?????????????????????????????????#?#?#??????? | | " #?????????????????????????????????#?#?#??????? | | #?????????????????????????????????#?#?#??????? | | ! #?????????????????????????????????#?#?#??????? | | #?????????????????????????????????#?#?#??????? | | ##+##?????????????????????????????????#?#?#??????? | +----------------------------------------------------+ Best States ------------- Heat Dissipation 149 Coolant Potential 120 Energy Generation 73 Energy Capacity 1760 Matter Stores 300 Matter Capacity 300 Sight Range 23 Robot Scan Range 16 Terrain Scan Range 24 Terrain Scan Density 210 Jamming Range 16 Armor Coverage 675 Resistance: KI 30 Resistance: TH 30 Resistance: I 20 Core Shielding 90 Weapon Shielding 90 Weapon Cycling 20 Evasion (%) 84 Targeting Accuracy 16 Target Analysis 12 Core Analysis 8 Recoil Reduction 6 Offensive Hacking 20 Defensive Hacking 12 Relay Coupler Types 2 Relay Coupler Value 45 Item Schematics ----------------- Hcp. Matter Pod | -9/Materials | Extracted Imp. Titanium Leg | -9/Storage | Hacked Imp. Treads | -9/Storage | Hacked Med. Reactive Plating | -7/Factory | Scanalyzed Combat Drone Bay | -6/Data Miner | Free Lgt. Regenerative Plating | -6/Data Miner | Free Enh. Flexi-carbon Leg | -6/Data Miner | Free Imp. Matter Compressor | -6/Data Miner | Free Cld. Plasma Rifle | -6/Data Miner | Free Imp. Antigrav System | -6/Data Miner | Free Imp. Remote Force Field | -6/Data Miner | Free Dispersion Rifle | -6/Data Miner | Free Adv. Cooling System | -6/Data Miner | Free Quantum Rifle | -6/Data Miner | Free Linear Accelerator | -4/Factory | Scanalyzed Centrium Medium Armor Plating | -4/Factory | Scanalyzed Imp. Thermal Shield | -4/Factory | Extracted Linear Gravjet | -4/Factory | Extracted Exp. Power Amplifier | -2/Protoforge | Archive Adv. KE Penetrator | -2/Protoforge | Archive Imp. Quantum Reactor | -2/Protoforge | Archive Singularity Reactor | -2/Protoforge | Archive Neutron Missile Launcher | -2/Protoforge | Archive Exp. EM Shield | -2/Protoforge | Archive Imp. Diametric Drive | -2/Protoforge | Archive Robot Schematics ------------------ L-31 Rogue | -9/Storage | Hacked K-01 Serf | -6/Factory | Archive T-07 Excavator | -6/Factory | Archive A-02 Transporter | -6/Factory | Archive A-15 Conveyor | -6/Factory | Archive R-06 Scavenger | -6/Factory | Archive R-10 Processor | -6/Factory | Archive M-14 Sweeper | -6/Factory | Archive M-22 Extractor | -6/Factory | Archive M-30 Cleanser | -6/Factory | Archive M-13 Machinist | -6/Factory | Archive M-28 Smith | -6/Factory | Archive M-36 Artificer | -6/Factory | Archive O-16 Technician | -6/Factory | Archive O-24 Administrator | -6/Factory | Archive O-32 Director | -6/Factory | Archive W-16 Scout | -6/Factory | Archive W-25 Informer | -6/Factory | Archive W-44 Eye | -6/Factory | Archive S-10 Pest | -6/Factory | Archive S-27 Virus | -6/Factory | Archive S-43 Plague | -6/Factory | Archive G-34 Mercenary | -6/Factory | Archive G-47 Trooper | -6/Factory | Archive G-50 Soldier | -6/Factory | Archive G-67 Veteran | -6/Factory | Archive G-73 Enforcer | -6/Factory | Archive B-36 Bruiser | -6/Factory | Archive B-48 Gladiator | -6/Factory | Archive B-60 Warrior | -6/Factory | Archive B-74 Champion | -6/Factory | Archive L-41 Fighter | -6/Factory | Archive L-61 Swordsman | -6/Factory | Archive Y-45 Defender | -6/Factory | Archive Y-54 Guardian | -6/Factory | Archive Y-64 Sentinel | -6/Factory | Archive Y-72 Warden | -6/Factory | Archive D-53 Grenadier | -6/Factory | Archive D-63 Destroyer | -6/Factory | Archive D-83 Annihilator | -6/Factory | Archive X-57 Shotgunner | -6/Factory | Archive X-62 Marksman | -6/Factory | Archive X-67 Chaingunner | -6/Factory | Archive X-72 Disruptor | -6/Factory | Archive X-77 Beamer | -6/Factory | Archive X-82 Rainmaker | -6/Factory | Archive X-87 Electro | -6/Factory | Archive H-55 Commando | -6/Factory | Archive H-66 Slayer | -6/Factory | Archive H-77 Assassin | -6/Factory | Archive H-88 Terminator | -6/Factory | Archive P-60 Hacker | -6/Factory | Archive P-70 Sage | -6/Factory | Archive P-80 Master | -6/Factory | Archive A-27 Freighter | -6/Data Miner | Free Fabricated ------------ Imp. Matter Compressor | x1 | -5/Factory | Preloaded Linear Accelerator | x2 | -4/Factory | Preloaded Y-72 Warden | x2 | -3/Research | Preloaded Repaired ---------- Imp. Heat Sink | 72% | -9/Materials Imp. Medium Laser | 38% | -9/Storage Lgt. Treads | 25% | -9/Storage Lgt. Treads | 47% | -9/Storage Imp. Medium Laser | 44% | -9/Storage Lgt. Treads | 45% | -9/Storage Lgt. Treads | 62% | -9/Storage Lgt. Treads | 50% | -7/Factory Arm. Huge Wheel | 53% | -7/Factory Med. Armored Exoskeleton | 47% | -5/Factory Med. Armored Exoskeleton | 58% | -5/Extension Med. Armored Exoskeleton | 46% | -4/Factory Enh. Flexi-carbon Leg | 27% | -4/Factory Enh. Flexi-carbon Leg | 32% | -4/Factory Centrium Medium Armor Plating | 50% | -4/Factory Med. Armored Exoskeleton | 49% | -3/Research Linear Accelerator | 44% | -3/Research Studied --------- Lgt. Treads | -9/Materials | Hacked Particle Gun | -9/Materials | Hacked Hvy. Laser | -7/Factory | Hacked Imp. Treads | -7/Factory | Hacked Arm. Wheel | -7/Factory | Hacked Arm. Huge Wheel | -7/Factory | Hacked Gatling Laser | -7/Factory | Hacked Arm. Treads | -7/Factory | Hacked Missile Launcher | -7/Factory | Hacked Pulse Rifle | -7/Factory | Hacked Hvy. Flail | -7/Factory | Hacked Med. Armored Exoskeleton | -4/Factory | Hacked Thunder Leg | -4/Factory | Hacked Hvy. Phase Cannon | -4/Factory | Hacked Biometal Leg | -2/Quarantine | Hacked Centrium Leg | -2/Protoforge | Hacked Particle Reactor | -1/Access | Hacked Alien Tech Used ----------------- Subatomic Replicator Concept Nanofilaments [Tensile] Achievements -------------- 75k Club Anti-science Crusade Bigger And Badder Definitely A Prototype Hot Stuff I'm Outta Here, Maybe Into The Breach Inventory(Loot) Not Immortal After All Stronghold Super-what Now? This Is My Hole Challenges ------------ None Game ------ Seed MultinovaDispersionRifle Manual? 0 Play Time 05:51:28 Cumulative 1993.0 hours Start 2025.10.14 @ 02:22:06 End 2025.10.16 @ 00:09:24 Sessions 7 Manual Loads 0 Difficulty Rogue Special Mode None Game No. 1305 Rogue 1301 Adventurer 4 Explorer 0 Win Type 8 Total 267 Types 200/12/21/10/3/1/4/9/5/2 Lore% 98 Gallery% 96 Achievement% 83 Wizard Run 0 Options --------- Layout 2 ASCII 0 Keyboard 1 Movement Vi Keybinds 0 Fullscreen 0 Font 24/Terminus Map View 59x48 Zoom Use 0% Tactical HUD 1 Map Filters NONE Filters NONE Steam 1 RUN: ba1e1786-be45-4b10-ba72-1fec39844fd2